Service area,Service sub division,TVBC Service,Expense type,Detailed expense type,TVBC account code,Date Paid,Transaction Reference, Nett Value ,Supplier Name
Central Services,Corporate & Democratic Core,Corporate & Democratic,Supplies & Services,Miscellaneous Expenses,External Audit Fees,01/11/2018,251789,-792,Ernst & Young Llp
Environmental & Regulatory,Regulatory Services,Housing and Environmental Health ,Supplies & Services,Miscellaneous Expenses,Health And Safety,22/11/2018,256669,-576.7,Skyguard Ltd
Environmental & Regulatory,Regulatory Services,Housing and Environmental Health ,Supplies & Services,Communications & Computing,Telephone Tracking System,15/11/2018,255318,6,Teletrac Navman (Uk) Ltd
Cultural & Related,Open Spaces,Community and Leisure ,Supplies & Services,Communications & Computing,Telephone Tracking System,15/11/2018,255318,6,Teletrac Navman (Uk) Ltd
Cultural & Related,Open Spaces,Community and Leisure ,Supplies & Services,Communications & Computing,Telephone Tracking System,15/11/2018,255318,6,Teletrac Navman (Uk) Ltd
Environmental & Regulatory,Regulatory Services,Housing and Environmental Health ,Transport Related Expenditure,Direct Transport Costs,Repair Materials,29/11/2018,256331,8.84,Md Services (Andover) Ltd
Environmental & Regulatory,Community Development,Community and Leisure ,Transport Related Expenditure,Direct Transport Costs,Repair Materials,29/11/2018,256331,8.9,Md Services (Andover) Ltd
Environmental & Regulatory,Regulatory Services,Housing and Environmental Health ,Transport Related Expenditure,Direct Transport Costs,Repair Materials,29/11/2018,256331,8.92,Md Services (Andover) Ltd
"Highways, Roads & Transport",Parking Services,Plan Pol & Transport,Transport Related Expenditure,Direct Transport Costs,Repair Materials,29/11/2018,256331,8.92,Md Services (Andover) Ltd
Central Services to the Public,Management & Support Services,IT,Supplies & Services,Communications & Computing,Purchase Of Telephones ,22/11/2018,255476,9.99,Incom Telecommunicatins
Environmental & Regulatory,Regulatory Services,Housing and Environmental Health ,Supplies & Services,Communications & Computing,Telephone Tracking System,15/11/2018,255318,12,Teletrac Navman (Uk) Ltd
"Highways, Roads & Transport",Parking Services,Plan Pol & Transport,Supplies & Services,Communications & Computing,Telephone Tracking System,15/11/2018,255318,12,Teletrac Navman (Uk) Ltd
Environmental & Regulatory,Waste management,Environmental,Supplies & Services,Communications & Computing,Telephone Tracking System,15/11/2018,255318,12,Teletrac Navman (Uk) Ltd
Cultural & Related,Recreation & Sport,Community and Leisure ,Supplies & Services,Communications & Computing,Land Line Telephone Charges,01/11/2018,254876,13,Virgin Media Payments Ltd
Environmental & Regulatory,Waste management,Environmental,Transport Related Expenditure,Direct Transport Costs,Repair Materials,29/11/2018,256331,13.24,Md Services (Andover) Ltd
Central Services to the Public,Management & Support Services,Environmental,Transport Related Expenditure,Direct Transport Costs,Repair Materials,29/11/2018,256331,13.32,Md Services (Andover) Ltd
Cultural & Related,Recreation & Sport,Community and Leisure ,Supplies & Services,Communications & Computing,Land Line Telephone Charges,01/11/2018,254876,13.48,Virgin Media Payments Ltd
Central Services to the Public,Management & Support Services,Environmental,Supplies & Services,Communications & Computing,Telephone Tracking System,15/11/2018,255318,18,Teletrac Navman (Uk) Ltd
Central Services to the Public,Management & Support Services,Environmental,Supplies & Services,Communications & Computing,Mobile Telephone Charges,22/11/2018,256529,21,Vodafone Limited
Central Services to the Public,Management & Support Services,Environmental,Supplies & Services,Communications & Computing,Mobile Telephone Charges,01/11/2018,253931,21,Vodafone Limited
Central Services to the Public,Management & Support Services,Environmental,Transport Related Expenditure,Direct Transport Costs,Repair Materials,29/11/2018,256331,22.8,Md Services (Andover) Ltd
Cultural & Related,Culture & Heritage,Estates and Economic Development ,Supplies & Services,Communications & Computing,Land Line Telephone Charges,01/11/2018,254876,26,Virgin Media Payments Ltd
Central Services to the Public,Management & Support Services,IT,Supplies & Services,Communications & Computing,Communication Links,01/11/2018,254876,26,Virgin Media Payments Ltd
Cultural & Related,Recreation & Sport,Community and Leisure ,Supplies & Services,Communications & Computing,Land Line Telephone Charges,01/11/2018,254876,26,Virgin Media Payments Ltd
External Trading Accounts,Business Parks,Estates and Economic Development ,Supplies & Services,Communications & Computing,Land Line Telephone Charges,01/11/2018,254876,26.32,Virgin Media Payments Ltd
Central Services to the Public,Local Tax Collection,Revenues,Supplies & Services,"Printing, Stationery & General Office Expenses",Postage Costs,22/11/2018,256670,27.55,Royal Mail Group Ltd
Central Services to the Public,Management & Support Services,Environmental,Supplies & Services,"Equipment, Furniture & Materials",Purchase Tools,29/11/2018,256331,30.94,Md Services (Andover) Ltd
Central Services to the Public,Management & Support Services,Estates and Economic Development ,Transport Related Expenditure,Direct Transport Costs,Repair Materials,29/11/2018,256331,31.1,Md Services (Andover) Ltd
Environmental & Regulatory,"Cemetery, Cremation and Mortuary Services",Community and Leisure ,Premises related Expenditure,Cleaning and domestic supplies,Contract Cleaning - Non Estates,22/11/2018,256280,34.5,Hi-Spec Facilities Services Plc
Central Services to the Public,Management & Support Services,Environmental,Supplies & Services,Communications & Computing,Mobile Telephone Charges,22/11/2018,256529,35,Vodafone Limited
Central Services to the Public,Management & Support Services,Environmental,Supplies & Services,Communications & Computing,Mobile Telephone Charges,01/11/2018,253931,35,Vodafone Limited
"Highways, Roads & Transport",Parking Services,Plan Pol & Transport,Supplies & Services,Communications & Computing,Alarm Lines,01/11/2018,254876,37,Virgin Media Payments Ltd
Cultural & Related,Culture & Heritage,Estates and Economic Development ,Supplies & Services,Communications & Computing,Land Line Telephone Charges,01/11/2018,254876,39,Virgin Media Payments Ltd
Environmental & Regulatory,Waste management,Environmental,Transport Related Expenditure,Direct Transport Costs,Tyres,22/11/2018,255918,42.58,Tructyre Fleet Management
Cultural & Related,Open Spaces,Environmental,Transport Related Expenditure,Direct Transport Costs,Tyres,22/11/2018,255860,47.88,Tructyre Fleet Management
Central Services to the Public,Management & Support Services,Estates and Economic Development ,Supplies & Services,Communications & Computing,Telephone Tracking System,15/11/2018,255318,48,Teletrac Navman (Uk) Ltd
External Trading Accounts,Business Parks,Estates and Economic Development ,Premises related Expenditure,Repairs Alterations & Maintenance of Buildings,Building Maint - Non Estates,15/11/2018,255857,48,Healthy Buildings International
Cultural & Related,Culture & Heritage,Estates and Economic Development ,Premises related Expenditure,Repairs Alterations & Maintenance of Buildings,Building Maint - Non Estates,15/11/2018,255857,48,Healthy Buildings International
Cultural & Related,Culture & Heritage,Estates and Economic Development ,Premises related Expenditure,Repairs Alterations & Maintenance of Buildings,Building Maint - Non Estates,15/11/2018,255857,48,Healthy Buildings International
Cultural & Related,Culture & Heritage,Estates and Economic Development ,Premises related Expenditure,Repairs Alterations & Maintenance of Buildings,Building Maint - Non Estates,15/11/2018,255857,48,Healthy Buildings International
Cultural & Related,Culture & Heritage,Estates and Economic Development ,Premises related Expenditure,Repairs Alterations & Maintenance of Buildings,Building Maint - Non Estates,15/11/2018,255857,48,Healthy Buildings International
Cultural & Related,Culture & Heritage,Estates and Economic Development ,Premises related Expenditure,Repairs Alterations & Maintenance of Buildings,Building Maint - Non Estates,15/11/2018,255857,48,Healthy Buildings International
Central Services to the Public,Management & Support Services,Estates and Economic Development ,Premises related Expenditure,Repairs Alterations & Maintenance of Buildings,Building Maint - Non Estates,15/11/2018,255857,48,Healthy Buildings International
Central Services to the Public,Management & Support Services,Estates and Economic Development ,Premises related Expenditure,Repairs Alterations & Maintenance of Buildings,Building Maint - Non Estates,15/11/2018,255857,48,Healthy Buildings International
Central Services to the Public,Management & Support Services,Estates and Economic Development ,Premises related Expenditure,Repairs Alterations & Maintenance of Buildings,Building Maint - Non Estates,15/11/2018,255857,48,Healthy Buildings International
Environmental & Regulatory,Regulatory Services,Estates and Economic Development ,Premises related Expenditure,Repairs Alterations & Maintenance of Buildings,Building Maint - Non Estates,15/11/2018,255857,48,Healthy Buildings International
Cultural & Related,Recreation & Sport,Community and Leisure ,Premises related Expenditure,Repairs Alterations & Maintenance of Buildings,Building Maint - Non Estates,15/11/2018,255857,48,Healthy Buildings International
Cultural & Related,Recreation & Sport,Community and Leisure ,Premises related Expenditure,Repairs Alterations & Maintenance of Buildings,Building Maint - Non Estates,15/11/2018,255857,48,Healthy Buildings International
Cultural & Related,Recreation & Sport,Community and Leisure ,Premises related Expenditure,Repairs Alterations & Maintenance of Buildings,Building Maint - Non Estates,15/11/2018,255857,48,Healthy Buildings International
Cultural & Related,Recreation & Sport,Community and Leisure ,Premises related Expenditure,Repairs Alterations & Maintenance of Buildings,Building Maint - Non Estates,15/11/2018,255857,48,Healthy Buildings International
Cultural & Related,Recreation & Sport,Community and Leisure ,Premises related Expenditure,Repairs Alterations & Maintenance of Buildings,Building Maint - Non Estates,15/11/2018,255857,48,Healthy Buildings International
Cultural & Related,Recreation & Sport,Community and Leisure ,Premises related Expenditure,Repairs Alterations & Maintenance of Buildings,Building Maint - Non Estates,15/11/2018,255857,48,Healthy Buildings International
Environmental & Regulatory,"Cemetery, Cremation and Mortuary Services",Community and Leisure ,Premises related Expenditure,Repairs Alterations & Maintenance of Buildings,Building Maint - Non Estates,15/11/2018,255857,48,Healthy Buildings International
Cultural & Related,Open Spaces,Community and Leisure ,Premises related Expenditure,Repairs Alterations & Maintenance of Buildings,Building Maint - Non Estates,15/11/2018,255857,48,Healthy Buildings International
Cultural & Related,Culture & Heritage,Community and Leisure ,Premises related Expenditure,Repairs Alterations & Maintenance of Buildings,Building Maint - Non Estates,15/11/2018,255857,48,Healthy Buildings International
Cultural & Related,Culture & Heritage,Community and Leisure ,Premises related Expenditure,Repairs Alterations & Maintenance of Buildings,Building Maint - Non Estates,15/11/2018,255857,48,Healthy Buildings International
"Highways, Roads & Transport",Parking Services,Plan Pol & Transport,Premises related Expenditure,Repairs Alterations & Maintenance of Buildings,Building Maint - Non Estates,15/11/2018,255857,48,Healthy Buildings International
Central Services to the Public,Local Tax Collection,Revenues,Supplies & Services,"Equipment, Furniture & Materials",Equipment Lease Rentals,22/11/2018,256376,49.31,Ricoh Uk Ltd
Environmental & Regulatory,Waste management,Environmental,Transport Related Expenditure,Direct Transport Costs,Repair Materials,08/11/2018,254782,49.5,Dennis Eagle Ltd
Central Services to the Public,Management & Support Services,Environmental,Supplies & Services,Communications & Computing,Land Line Telephone Charges,01/11/2018,254876,52.92,Virgin Media Payments Ltd
Cultural & Related,Tourism,Estates and Economic Development ,Premises related Expenditure,Repairs Alterations & Maintenance of Buildings,Planned Maintenance - Non Est,15/11/2018,255730,57.7,Healthy Buildings International
Cultural & Related,Culture & Heritage,Estates and Economic Development ,Premises related Expenditure,Repairs Alterations & Maintenance of Buildings,Planned Maintenance - Non Est,15/11/2018,255730,57.7,Healthy Buildings International
Central Services to the Public,Management & Support Services,Estates and Economic Development ,Premises related Expenditure,Repairs Alterations & Maintenance of Buildings,Planned Maintenance - Non Est,15/11/2018,255730,57.7,Healthy Buildings International
Central Services to the Public,Management & Support Services,Estates and Economic Development ,Premises related Expenditure,Repairs Alterations & Maintenance of Buildings,Planned Maintenance - Non Est,15/11/2018,255730,57.7,Healthy Buildings International
External Trading Accounts,Business Parks,Estates and Economic Development ,Premises related Expenditure,Repairs Alterations & Maintenance of Buildings,Planned Maintenance - Non Est,15/11/2018,255730,57.71,Healthy Buildings International
Cultural & Related,Culture & Heritage,Estates and Economic Development ,Premises related Expenditure,Repairs Alterations & Maintenance of Buildings,Planned Maintenance - Non Est,15/11/2018,255730,57.71,Healthy Buildings International
Cultural & Related,Culture & Heritage,Estates and Economic Development ,Premises related Expenditure,Repairs Alterations & Maintenance of Buildings,Planned Maintenance - Non Est,15/11/2018,255730,57.71,Healthy Buildings International
Cultural & Related,Culture & Heritage,Estates and Economic Development ,Premises related Expenditure,Repairs Alterations & Maintenance of Buildings,Planned Maintenance - Non Est,15/11/2018,255730,57.71,Healthy Buildings International
Cultural & Related,Culture & Heritage,Estates and Economic Development ,Premises related Expenditure,Repairs Alterations & Maintenance of Buildings,Planned Maintenance - Non Est,15/11/2018,255730,57.71,Healthy Buildings International
Central Services to the Public,Management & Support Services,Estates and Economic Development ,Premises related Expenditure,Repairs Alterations & Maintenance of Buildings,Planned Maintenance - Non Est,15/11/2018,255730,57.71,Healthy Buildings International
Central Services to the Public,Management & Support Services,Estates and Economic Development ,Premises related Expenditure,Repairs Alterations & Maintenance of Buildings,Planned Maintenance - Non Est,15/11/2018,255730,57.71,Healthy Buildings International
Cultural & Related,Recreation & Sport,Community and Leisure ,Premises related Expenditure,Repairs Alterations & Maintenance of Buildings,Planned Maintenance - Non Est,15/11/2018,255730,57.71,Healthy Buildings International
Cultural & Related,Recreation & Sport,Community and Leisure ,Premises related Expenditure,Repairs Alterations & Maintenance of Buildings,Planned Maintenance - Non Est,15/11/2018,255730,57.71,Healthy Buildings International
Cultural & Related,Recreation & Sport,Community and Leisure ,Premises related Expenditure,Repairs Alterations & Maintenance of Buildings,Planned Maintenance - Non Est,15/11/2018,255730,57.71,Healthy Buildings International
Cultural & Related,Recreation & Sport,Community and Leisure ,Premises related Expenditure,Repairs Alterations & Maintenance of Buildings,Planned Maintenance - Non Est,15/11/2018,255730,57.71,Healthy Buildings International
Cultural & Related,Recreation & Sport,Community and Leisure ,Premises related Expenditure,Repairs Alterations & Maintenance of Buildings,Planned Maintenance - Non Est,15/11/2018,255730,57.71,Healthy Buildings International
Cultural & Related,Recreation & Sport,Community and Leisure ,Premises related Expenditure,Repairs Alterations & Maintenance of Buildings,Planned Maintenance - Non Est,15/11/2018,255730,57.71,Healthy Buildings International
Cultural & Related,Recreation & Sport,Community and Leisure ,Premises related Expenditure,Repairs Alterations & Maintenance of Buildings,Planned Maintenance - Non Est,15/11/2018,255730,57.71,Healthy Buildings International
Environmental & Regulatory,"Cemetery, Cremation and Mortuary Services",Community and Leisure ,Premises related Expenditure,Repairs Alterations & Maintenance of Buildings,Planned Maintenance - Non Est,15/11/2018,255730,57.71,Healthy Buildings International
Environmental & Regulatory,"Cemetery, Cremation and Mortuary Services",Community and Leisure ,Premises related Expenditure,Repairs Alterations & Maintenance of Buildings,Planned Maintenance - Non Est,15/11/2018,255730,57.71,Healthy Buildings International
Cultural & Related,Open Spaces,Community and Leisure ,Premises related Expenditure,Repairs Alterations & Maintenance of Buildings,Planned Maintenance - Non Est,15/11/2018,255730,57.71,Healthy Buildings International
Cultural & Related,Culture & Heritage,Community and Leisure ,Premises related Expenditure,Repairs Alterations & Maintenance of Buildings,Planned Maintenance - Non Est,15/11/2018,255730,57.71,Healthy Buildings International
"Highways, Roads & Transport",Parking Services,Plan Pol & Transport,Premises related Expenditure,Repairs Alterations & Maintenance of Buildings,Planned Maintenance - Non Est,15/11/2018,255730,57.71,Healthy Buildings International
Environmental & Regulatory,Street Cleansing (not chargeable to Highways),Environmental,Employees,Indirect Employee Expenses,Agency Staff - Waged Posts,01/11/2018,254584,66.39,24-7 Staffing
Central Services to the Public,Management & Support Services,IT,Supplies & Services,Communications & Computing,Communication Links,01/11/2018,254876,67,Virgin Media Payments Ltd
Central Services to the Public,Management & Support Services,Environmental,Supplies & Services,Miscellaneous Expenses,Health And Safety,08/11/2018,255139,67.7,Arco Ltd
Environmental & Regulatory,Waste management,Environmental,Supplies & Services,"Equipment, Furniture & Materials",Purchase Equip + Materials,08/11/2018,255139,69.7,Arco Ltd
Central Services to the Public,Management & Support Services,Environmental,Supplies & Services,Services,Training Courses,01/11/2018,254135,71.66,Terberg Matec Uk Limited
Cultural & Related,Culture & Heritage,Community and Leisure ,Supplies & Services,Communications & Computing,Communication Links,01/11/2018,254876,74.09,Virgin Media Payments Ltd
Environmental & Regulatory,Waste management,Environmental,Transport Related Expenditure,Direct Transport Costs,Repair Materials,29/11/2018,256331,75.48,Md Services (Andover) Ltd
Central Services to the Public,Management & Support Services,Environmental,Supplies & Services,"Equipment, Furniture & Materials",Purchase Tools,08/11/2018,254564,76.46,Md Services (Andover) Ltd
Central Services to the Public,Local Tax Collection,Revenues,Supplies & Services,Services,Professional Fees,01/11/2018,254702,77.13,Ross & Roberts
Housing Services,Housing Benefits ,Revenues,Supplies & Services,"Printing, Stationery & General Office Expenses",Postage Costs,22/11/2018,256670,83.13,Royal Mail Group Ltd
Central Services to the Public,Local Tax Collection,Revenues,Supplies & Services,"Printing, Stationery & General Office Expenses",Postage Costs,22/11/2018,256670,83.13,Royal Mail Group Ltd
Central Services to the Public,Emergency Planning,Corporate & Democratic,Supplies & Services,Communications & Computing,Land Line Telephone Charges,01/11/2018,254876,91,Virgin Media Payments Ltd
Environmental & Regulatory,Street Cleansing (not chargeable to Highways),Environmental,Transport Related Expenditure,Direct Transport Costs,Repair Materials,29/11/2018,256331,102.12,Md Services (Andover) Ltd
"Highways, Roads & Transport",Parking Services,Plan Pol & Transport,Premises related Expenditure,Cleaning and domestic supplies,Contract Cleaning - Non Estates,22/11/2018,256280,103.5,Hi-Spec Facilities Services Plc
Central Services to the Public,Management & Support Services,Estates and Economic Development ,Supplies & Services,Miscellaneous Expenses,Health And Safety,22/11/2018,256319,104.76,Skyguard Ltd
Environmental & Regulatory,Regulatory Services,Estates and Economic Development ,Premises related Expenditure,Repairs Alterations & Maintenance of Buildings,Planned Maintenance - Non Est,15/11/2018,255730,115.42,Healthy Buildings International
Environmental & Regulatory,Waste management,Environmental,Supplies & Services,"Equipment, Furniture & Materials",Purchase Equip + Materials,22/11/2018,256319,116.4,Skyguard Ltd
Central Services to the Public,Local Tax Collection,Revenues,Supplies & Services,"Printing, Stationery & General Office Expenses",Postage Costs,08/11/2018,255108,132.88,Royal Mail Group Ltd
Environmental & Regulatory,Waste management,Environmental,Supplies & Services,Communications & Computing,Telephone Tracking System,15/11/2018,255318,138,Teletrac Navman (Uk) Ltd
Environmental & Regulatory,Waste management,Environmental,Supplies & Services,Communications & Computing,Mobile Telephone Charges,22/11/2018,256529,140.12,Vodafone Limited
Environmental & Regulatory,Waste management,Environmental,Supplies & Services,Communications & Computing,Mobile Telephone Charges,01/11/2018,253931,140.32,Vodafone Limited
Central Services to the Public,Local Tax Collection,Revenues,Supplies & Services,"Equipment, Furniture & Materials",Equipment Lease Rentals,22/11/2018,256376,147.92,Ricoh Uk Ltd
Housing Services,Housing Benefits ,Revenues,Supplies & Services,"Equipment, Furniture & Materials",Equipment Lease Rentals,22/11/2018,256376,147.92,Ricoh Uk Ltd
Central Services to the Public,Local Tax Collection,Revenues,Supplies & Services,"Equipment, Furniture & Materials",Equipment Lease Rentals,22/11/2018,256376,147.92,Ricoh Uk Ltd
Cultural & Related,Culture & Heritage,Estates and Economic Development ,Supplies & Services,Miscellaneous Expenses,Waste Collection,15/11/2018,255667,171.88,Suez Recycling And Recovery Uk Ltd
Central Services to the Public,Management & Support Services,Estates and Economic Development ,Premises related Expenditure,Cleaning and domestic supplies,Contract Cleaning - Non Estates,22/11/2018,256280,172.51,Hi-Spec Facilities Services Plc
External Trading Accounts,Business Parks,Estates and Economic Development ,Premises related Expenditure,Repairs Alterations & Maintenance of Buildings,Planned Maintenance - Non Est,15/11/2018,255730,173.12,Healthy Buildings International
Cultural & Related,Open Spaces,Environmental,Transport Related Expenditure,Direct Transport Costs,Repair Materials,29/11/2018,256331,173.16,Md Services (Andover) Ltd
Environmental & Regulatory,Street Cleansing (not chargeable to Highways),Environmental,Supplies & Services,Communications & Computing,Mobile Telephone Charges,22/11/2018,256529,178.33,Vodafone Limited
Environmental & Regulatory,Street Cleansing (not chargeable to Highways),Environmental,Supplies & Services,Communications & Computing,Mobile Telephone Charges,01/11/2018,253931,181.43,Vodafone Limited
Planning & Development,Development Control,Planning & Building,Supplies & Services,"Equipment, Furniture & Materials",Purchase Equip + Materials,22/11/2018,255121,185.47,Lyreco Uk Ltd
Environmental & Regulatory,Street Cleansing (not chargeable to Highways),Environmental,Supplies & Services,Communications & Computing,Telephone Tracking System,15/11/2018,255318,186.7,Teletrac Navman (Uk) Ltd
Environmental & Regulatory,Waste management,Environmental,Transport Related Expenditure,Direct Transport Costs,Repair Materials,08/11/2018,254779,188.17,Dennis Eagle Ltd
Environmental & Regulatory,Street Cleansing (not chargeable to Highways),Environmental,Transport Related Expenditure,Direct Transport Costs,Tyres,08/11/2018,254714,191.41,Tructyre Fleet Management
External Trading Accounts,Business Parks,Estates and Economic Development ,Premises related Expenditure,Repairs Alterations & Maintenance of Buildings,Building Maint - Non Estates,15/11/2018,255857,192,Healthy Buildings International
Central Services to the Public,Management & Support Services,Estates and Economic Development ,Premises related Expenditure,Repairs Alterations & Maintenance of Buildings,Building Maint - Non Estates,15/11/2018,255712,195,Healthy Buildings International
Cultural & Related,Open Spaces,Environmental,Supplies & Services,Communications & Computing,Mobile Telephone Charges,01/11/2018,253931,196.09,Vodafone Limited
Cultural & Related,Open Spaces,Environmental,Supplies & Services,Communications & Computing,Mobile Telephone Charges,22/11/2018,256529,196.3,Vodafone Limited
External Trading Accounts,Business Parks,Estates and Economic Development ,Premises related Expenditure,Cleaning and domestic supplies,Contract Cleaning - Non Estates,22/11/2018,256280,207.01,Hi-Spec Facilities Services Plc
Environmental & Regulatory,Waste management,Environmental,Employees,Indirect Employee Expenses,Agency Staff - Waged Posts,01/11/2018,254588,213,24-7 Staffing
Central Services to the Public,Local Tax Collection,Revenues,Supplies & Services,Services,External Training Consultants,01/11/2018,254865,229,Adaptis Ltd
Housing Services,Housing Benefits ,Revenues,Supplies & Services,Services,External Training Consultants,01/11/2018,254865,229,Adaptis Ltd
Central Services to the Public,Management & Support Services,Legal & Democratic,Supplies & Services,"Equipment, Furniture & Materials",Purchase Equip + Materials,22/11/2018,256319,244.44,Skyguard Ltd
Central Services to the Public,Local Tax Collection,Revenues,Supplies & Services,"Equipment, Furniture & Materials",Purchase Equip + Materials,22/11/2018,256319,244.44,Skyguard Ltd
Housing Services,Housing Benefits ,Revenues,Supplies & Services,"Equipment, Furniture & Materials",Purchase Equip + Materials,22/11/2018,256319,244.44,Skyguard Ltd
Central Services to the Public,Local Tax Collection,Revenues,Supplies & Services,"Equipment, Furniture & Materials",Purchase Equip + Materials,22/11/2018,256319,244.44,Skyguard Ltd
Environmental & Regulatory,Waste management,Environmental,Transport Related Expenditure,Direct Transport Costs,Tyres,08/11/2018,254714,244.89,Tructyre Fleet Management
Cultural & Related,Open Spaces,Environmental,Supplies & Services,Communications & Computing,Telephone Tracking System,15/11/2018,255318,246,Teletrac Navman (Uk) Ltd
Cultural & Related,Open Spaces,Community and Leisure ,Premises related Expenditure,Grounds Maintenance Costs,Non Contract Tree Works,29/11/2018,256656,249.51,Gristwood & Toms Ltd
Environmental & Regulatory,Waste management,Environmental,Employees,Indirect Employee Expenses,Agency Staff - Waged Posts,01/11/2018,254586,253.92,24-7 Staffing
Central Services to the Public,Management & Support Services,Environmental,Transport Related Expenditure,Direct Transport Costs,Repair Materials,08/11/2018,254779,255.82,Dennis Eagle Ltd
Planning & Development,Development Control,Planning & Building,Supplies & Services,"Printing, Stationery & General Office Expenses",Print Consumables,22/11/2018,255121,260.9,Lyreco Uk Ltd
Housing Services,Housing Benefits ,Revenues,Supplies & Services,"Printing, Stationery & General Office Expenses",Postage Costs,08/11/2018,255108,265.77,Royal Mail Group Ltd
Central Services to the Public,Local Tax Collection,Revenues,Supplies & Services,"Printing, Stationery & General Office Expenses",Postage Costs,08/11/2018,255108,265.77,Royal Mail Group Ltd
Central Services to the Public,Management & Support Services,Environmental,Transport Related Expenditure,Direct Transport Costs,Workshop Consumables,08/11/2018,254564,328.9,Md Services (Andover) Ltd
Central Services to the Public,Management & Support Services,Revenues,Supplies & Services,Miscellaneous Expenses,Security Services,29/11/2018,256974,328.9,Jade Security Services Ltd
Environmental & Regulatory,Waste management,Environmental,Employees,Indirect Employee Expenses,Agency Staff - Waged Posts,01/11/2018,254588,330.53,24-7 Staffing
Environmental & Regulatory,Waste management,Environmental,Employees,Indirect Employee Expenses,Agency Staff - Waged Posts,22/11/2018,256616,332.2,24-7 Staffing
Environmental & Regulatory,Waste management,Environmental,Supplies & Services,Communications & Computing,Computer Hardware,15/11/2018,255859,357.6,Pure Technology Group
Central Services to the Public,Management & Support Services,Environmental,Supplies & Services,"Clothes, Uniforms & Laundry",Clothing + Uniforms,08/11/2018,255139,363.07,Arco Ltd
Central Services to the Public,Management & Support Services,Estates and Economic Development ,Supplies & Services,Miscellaneous Expenses,Waste Collection,15/11/2018,255667,386.37,Suez Recycling And Recovery Uk Ltd
Environmental & Regulatory,Waste management,Environmental,Employees,Indirect Employee Expenses,Agency Staff - Waged Posts,15/11/2018,254523,398.75,Gi Group Recruitment Ltd
Environmental & Regulatory,Waste management,Environmental,Transport Related Expenditure,Direct Transport Costs,Tyres,01/11/2018,254493,402.06,Tructyre Fleet Management
Cultural & Related,Culture & Heritage,Estates and Economic Development ,Premises related Expenditure,Cleaning and domestic supplies,Contract Cleaning - Non Estates,22/11/2018,256280,414.02,Hi-Spec Facilities Services Plc
Cultural & Related,Recreation & Sport,Community and Leisure ,Premises related Expenditure,Cleaning and domestic supplies,Contract Cleaning - Non Estates,22/11/2018,256280,414.02,Hi-Spec Facilities Services Plc
Cultural & Related,Recreation & Sport,Community and Leisure ,Premises related Expenditure,Cleaning and domestic supplies,Contract Cleaning - Non Estates,22/11/2018,256280,414.02,Hi-Spec Facilities Services Plc
Central Services to the Public,Management & Support Services,Estates and Economic Development ,Third Party Payments,Other Establishments,Private Contractors,22/11/2018,256613,420,Sani Solutions Ltd
Central Services to the Public,Local Tax Collection,Revenues,Supplies & Services,"Printing, Stationery & General Office Expenses",External Printing,01/11/2018,254728,425,Hound Envelopes Limited
Central Services to the Public,Management & Support Services,Housing and Environmental Health ,Supplies & Services,"Printing, Stationery & General Office Expenses",Photocopying Costs,29/11/2018,256016,426.64,Ricoh Uk Ltd
Central Services to the Public,Management & Support Services,Environmental,Supplies & Services,"Printing, Stationery & General Office Expenses",Postage Costs,22/11/2018,256372,429.62,Ricoh Uk Ltd
Environmental & Regulatory,Waste management,Environmental,Transport Related Expenditure,Direct Transport Costs,Repair Materials,01/11/2018,254083,431.78,Foray Motor Group Ltd
Environmental & Regulatory,Waste management,Environmental,Transport Related Expenditure,Direct Transport Costs,Tyres,22/11/2018,255860,434.25,Tructyre Fleet Management
Central Services to the Public,Management & Support Services,IT,Supplies & Services,Communications & Computing,Computer Hardware,22/11/2018,255476,435,Incom Telecommunicatins
Planning & Development,Planning Policy,Plan Pol & Transport,Supplies & Services,"Printing, Stationery & General Office Expenses",Photocopying Costs,29/11/2018,256671,435.14,Ricoh Uk Ltd
Environmental & Regulatory,Street Cleansing (not chargeable to Highways),Environmental,Employees,Indirect Employee Expenses,Agency Staff - Waged Posts,15/11/2018,255664,436.97,24-7 Staffing
Environmental & Regulatory,Street Cleansing (not chargeable to Highways),Environmental,Employees,Indirect Employee Expenses,Agency Staff - Waged Posts,22/11/2018,256281,436.97,24-7 Staffing
Environmental & Regulatory,Waste management,Environmental,Transport Related Expenditure,Direct Transport Costs,External Garages,08/11/2018,254782,439.32,Dennis Eagle Ltd
Planning & Development,Building Control,Planning & Building,Supplies & Services,Services,Professional Fees,01/11/2018,250019,442.88,Barron & Partners
Environmental & Regulatory,Waste management,Environmental,Supplies & Services,"Equipment, Furniture & Materials",Purchase Equip + Materials,29/11/2018,256041,445.6,Frontier Medical Group
Environmental & Regulatory,Street Cleansing (not chargeable to Highways),Environmental,Employees,Indirect Employee Expenses,Agency Staff - Waged Posts,01/11/2018,254586,446.59,24-7 Staffing
Environmental & Regulatory,Street Cleansing (not chargeable to Highways),Environmental,Employees,Indirect Employee Expenses,Agency Staff - Waged Posts,01/11/2018,254589,446.59,24-7 Staffing
Environmental & Regulatory,Waste management,Environmental,Employees,Indirect Employee Expenses,Agency Staff - Waged Posts,15/11/2018,255666,448.05,24-7 Staffing
Environmental & Regulatory,Regulatory Services,Housing and Environmental Health ,Employees,Indirect Employee Expenses,Temporary Staff,01/11/2018,253715,448.81,The Oyster Partnership Ltd
Planning & Development,Development Control,Planning & Building,Supplies & Services,"Printing, Stationery & General Office Expenses",Photocopying Costs,22/11/2018,256018,449.04,Ricoh Uk Ltd
Central Services to the Public,Management & Support Services,Estates and Economic Development ,Supplies & Services,Miscellaneous Expenses,Health And Safety,01/11/2018,254539,450,British Dyslexia Association
Cultural & Related,Open Spaces,Environmental,Supplies & Services,"Equipment, Furniture & Materials",Purchase Equip + Materials,22/11/2018,255090,450,Smrs Fabrication & Welding Ltd
Environmental & Regulatory,Waste management,Environmental,Transport Related Expenditure,Direct Transport Costs,Repair Materials,08/11/2018,254512,454.47,Hyphose Ltd
Environmental & Regulatory,Waste management,Environmental,Transport Related Expenditure,Direct Transport Costs,Repair Materials,08/11/2018,254720,456.48,Dennis Eagle Ltd
Cultural & Related,Open Spaces,Environmental,Transport Related Expenditure,Direct Transport Costs,Petrol,15/11/2018,255161,456.72,Fuel Card Services Ltd
Environmental & Regulatory,Waste management,Environmental,Employees,Indirect Employee Expenses,Agency Staff - Waged Posts,15/11/2018,255665,457.01,24-7 Staffing
Central Services to the Public,Elections,Legal & Democratic,Supplies & Services,"Equipment, Furniture & Materials",Purchase Equip + Materials,01/11/2018,254847,460,Signet Signs Ltd
Central Services to the Public,Management & Support Services,IT,Supplies & Services,"Printing, Stationery & General Office Expenses",Stationery,01/11/2018,254503,463.5,Essentra Components Ltd
Cultural & Related,Recreation & Sport,Community and Leisure ,Third Party Payments,Private contractors,Main Contractor Costs,15/11/2018,255321,465,Austin Foot Ecology
Cultural & Related,Recreation & Sport,Community and Leisure ,Premises related Expenditure,Repairs Alterations & Maintenance of Buildings,General Repairs,29/11/2018,256668,465,Personal Data - Data Protection Act 1998
Central Services to the Public,Local Tax Collection,Revenues,Supplies & Services,"Printing, Stationery & General Office Expenses",Postage Costs,22/11/2018,256670,465.03,Royal Mail Group Ltd
Environmental & Regulatory,Waste management,Environmental,Employees,Indirect Employee Expenses,Agency Staff - Waged Posts,01/11/2018,254591,466.5,24-7 Staffing
Central Services to the Public,Management & Support Services,Environmental,Transport Related Expenditure,Direct Transport Costs,Workshop Consumables,29/11/2018,256331,467.95,Md Services (Andover) Ltd
External Trading Accounts,Property Investments,Estates and Economic Development ,Premises related Expenditure,Grounds Maintenance Costs,Grounds Maintenance Contracts,22/11/2018,256516,473.19,Landmarks Sustainability Ltd
Central Services to the Public,Management & Support Services,Legal & Democratic,Supplies & Services,Services,Training Courses,08/11/2018,255166,475,Pdp Training
Environmental & Regulatory,Street Cleansing (not chargeable to Highways),Environmental,Transport Related Expenditure,Contract Hire and Operating Leases,Vehicles-Hired\Leased,22/11/2018,256296,475,Go Plant Ltd
Environmental & Regulatory,Street Cleansing (not chargeable to Highways),Environmental,Transport Related Expenditure,Contract Hire and Operating Leases,Vehicles-Hired\Leased,29/11/2018,256915,475,Go Plant Ltd
Cultural & Related,Open Spaces,Environmental,Supplies & Services,"Equipment, Furniture & Materials",Purchase Equip + Materials,22/11/2018,255697,475.94,Spaldings (Uk) Limited
Central Services to the Public,Management & Support Services,Estates and Economic Development ,Third Party Payments,Other Establishments,Private Contractors,15/11/2018,255733,478.89,Btu Installation & Maintenance Ltd
Cultural & Related,Culture & Heritage,Estates and Economic Development ,Premises related Expenditure,Repairs Alterations & Maintenance of Buildings,Planned Maintenance - Non Est,22/11/2018,256515,487,Bpc Energy Ltd
Central Services to the Public,Management & Support Services,Housing and Environmental Health ,Supplies & Services,"Equipment, Furniture & Materials",Purchase Equip + Materials,22/11/2018,256319,488.88,Skyguard Ltd
Central Services to the Public,Management & Support Services,Community and Leisure ,Supplies & Services,Miscellaneous Expenses,Health And Safety,22/11/2018,256319,488.88,Skyguard Ltd
Environmental & Regulatory,Waste management,Environmental,Employees,Indirect Employee Expenses,Agency Staff - Waged Posts,22/11/2018,256030,489.75,Simple Recruitment Services Ltd
Central Services to the Public,Management & Support Services,Environmental,Transport Related Expenditure,Direct Transport Costs,Repair Materials,08/11/2018,254564,490.61,Md Services (Andover) Ltd
Central Services to the Public,Management & Support Services,Revenues,Supplies & Services,"Equipment, Furniture & Materials",Purchase Furniture,29/11/2018,256615,495,Spectrum Workplace Llp
Environmental & Regulatory,Waste management,Environmental,Supplies & Services,Miscellaneous Expenses,Vehicle insurance claims,29/11/2018,257157,500,Russells Auto Body Centre Ltd
Cultural & Related,Culture & Heritage,Community and Leisure ,Supplies & Services,Miscellaneous Expenses,Booking Of Acts,08/11/2018,255184,500,The Milk Men
Planning & Development,Community Development,Community and Leisure ,Supplies & Services,Grants & Subscriptions,Grants,08/11/2018,255456,500,Citizen'S Advice Test Valley
Planning & Development,Community Development,Community and Leisure ,Supplies & Services,Grants & Subscriptions,Grants,08/11/2018,255457,500,Shipton Bellinger Parish Council
Central Services to the Public,Management & Support Services,Plan Pol & Transport,Supplies & Services,Grants & Subscriptions,Grants,15/11/2018,256079,500,Hurstbourne Tarrant P C
Cultural & Related,Culture & Heritage,Community and Leisure ,Supplies & Services,Miscellaneous Expenses,Booking Of Acts,01/11/2018,253012,500,Sound Of The Sirens
Planning & Development,Community Development,Community and Leisure ,Supplies & Services,Grants & Subscriptions,Grants,21/11/2018,256080,500,Romsey Abbey C Of E Primary School Pta
External Trading Accounts,Business Parks,Estates and Economic Development ,Supplies & Services,Services,Professional Fees,08/11/2018,254842,500,Real Estate Strategies Ltd
Cultural & Related,Tourism,Estates and Economic Development ,Supplies & Services,Services,Project Consultancy - Policy,29/11/2018,256282,500,Tourism South East
Central Services to the Public,Management & Support Services,Environmental,Supplies & Services,"Printing, Stationery & General Office Expenses",External Printing,22/11/2018,256509,506.35,Ricoh Uk Ltd
Central Services to the Public,Management & Support Services,Revenues,Supplies & Services,"Equipment, Furniture & Materials",Maintenance Equip + Materials,15/11/2018,255871,507.73,Twofold Limited
Cultural & Related,Open Spaces,Environmental,Supplies & Services,"Equipment, Furniture & Materials",Purchase Equip + Materials,01/11/2018,254713,510.3,Jewson Ltd
Environmental & Regulatory,Waste management,Environmental,Transport Related Expenditure,Direct Transport Costs,External Garages,01/11/2018,254488,524.76,Dennis Eagle Ltd
Central Services to the Public,Management & Support Services,IT,Supplies & Services,"Equipment, Furniture & Materials",Purchase Equipment For Hire,08/11/2018,253901,527.74,Xerox (Uk) Ltd
Cultural & Related,Culture & Heritage,Community and Leisure ,Supplies & Services,Miscellaneous Expenses,Booking Of Acts,22/11/2018,256504,527.92,Hotbuckle Productions
Central Services to the Public,Management & Support Services,Estates and Economic Development ,Employees,Indirect Employee Expenses,Staff Professional Fees,15/11/2018,256082,529,Personal Data - Data Protection Act 1998
Central Services to the Public,Management & Support Services,Estates and Economic Development ,Employees,Indirect Employee Expenses,Staff Professional Fees,29/11/2018,257176,529,Personal Data - Data Protection Act 1998
External Trading Accounts,Business Parks,Estates and Economic Development ,Premises related Expenditure,Water Services,Water And Sewerage Charges,01/11/2018,254727,531.79,Business Stream
Cultural & Related,Culture & Heritage,Community and Leisure ,Supplies & Services,Miscellaneous Expenses,Booking Of Acts,15/11/2018,255431,538.13,Image Musical Theatre (Uk) Ltd
Central Services to the Public,Management & Support Services,Estates and Economic Development ,Third Party Payments,Private contractors,Main Contractor Costs,01/11/2018,252762,540,Barron & Partners
External Trading Accounts,Property Investments,Estates and Economic Development ,Premises related Expenditure,Repairs Alterations & Maintenance of Buildings,Salt & Gritting,22/11/2018,256602,540,Gritit Ltd
Cultural & Related,Open Spaces,Community and Leisure ,Premises related Expenditure,Grounds Maintenance Costs,Non Contract Tree Works,29/11/2018,256656,540.22,Gristwood & Toms Ltd
Central Services to the Public,Management & Support Services,Estates and Economic Development ,Supplies & Services,"Equipment, Furniture & Materials",Purchase Tools,08/11/2018,255091,547.8,Smrs Fabrication & Welding Ltd
Cultural & Related,Open Spaces,Environmental,Transport Related Expenditure,Direct Transport Costs,Repair Materials,22/11/2018,255886,548.58,T H White Ltd
Central Services to the Public,Management & Support Services,Estates and Economic Development ,Supplies & Services,Miscellaneous Expenses,Health And Safety,29/11/2018,257082,550,Hcs Safety Ltd
Central Services to the Public,Local Tax Collection,Revenues,Supplies & Services,Communications & Computing,Software Maintenance,01/11/2018,254867,550,Northgate Public Services Uk Ltd
Environmental & Regulatory,Waste management,Environmental,Employees,Indirect Employee Expenses,Agency Staff - Waged Posts,15/11/2018,254523,550,Gi Group Recruitment Ltd
Cultural & Related,Culture & Heritage,Community and Leisure ,Supplies & Services,Catering,Non-Contract Catering,22/11/2018,255870,550.62,Carlsberg Uk Ltd
Environmental & Regulatory,Street Cleansing (not chargeable to Highways),Environmental,Supplies & Services,"Equipment, Furniture & Materials",Purchase Equip + Materials,15/11/2018,255198,552,Sweeperhire
Central Services to the Public,Management & Support Services,Estates and Economic Development ,Third Party Payments,Other Establishments,Private Contractors,22/11/2018,256612,557.86,Brooks Electrical Services Ltd
Environmental & Regulatory,Street Cleansing (not chargeable to Highways),Environmental,Transport Related Expenditure,Direct Transport Costs,Tyres,01/11/2018,254493,558.18,Tructyre Fleet Management
Cultural & Related,Culture & Heritage,Community and Leisure ,Supplies & Services,Catering,Non-Contract Catering,08/11/2018,255186,558.37,Carlsberg Uk Ltd
Cultural & Related,Culture & Heritage,Community and Leisure ,Supplies & Services,Miscellaneous Expenses,Promotions / Special Events,15/11/2018,255681,560,Avenue Audio Ltd
Environmental & Regulatory,Waste management,Environmental,Employees,Indirect Employee Expenses,Agency Staff - Waged Posts,22/11/2018,250646,560.31,Gi Group Recruitment Ltd
Environmental & Regulatory,Waste management,Environmental,Employees,Indirect Employee Expenses,Agency Staff - Waged Posts,01/11/2018,254592,564.45,24-7 Staffing
Central Services to the Public,Management & Support Services,Estates and Economic Development ,Third Party Payments,Other Establishments,Private Contractors,15/11/2018,255089,573.5,Smrs Fabrication & Welding Ltd
Central Services to the Public,Management & Support Services,IT,Supplies & Services,Communications & Computing,Land Line Telephone Charges,08/11/2018,255327,575.75,Virgin Media Payments Ltd
Environmental & Regulatory,Waste management,Environmental,Transport Related Expenditure,Direct Transport Costs,Repair Materials,08/11/2018,254571,581.65,Dennis Eagle Ltd
Central Services to the Public,Management & Support Services,Environmental,Transport Related Expenditure,Direct Transport Costs,Repair Materials,15/11/2018,255473,581.65,Dennis Eagle Ltd
Environmental & Regulatory,Street Cleansing (not chargeable to Highways),Environmental,Supplies & Services,"Equipment, Furniture & Materials",Purchase Equip + Materials,22/11/2018,256319,582,Skyguard Ltd
Cultural & Related,Open Spaces,Environmental,Supplies & Services,"Equipment, Furniture & Materials",Purchases for playgrounds,01/11/2018,253910,586.67,Gb Sport & Leisure Uk Ltd
Central Services to the Public,Management & Support Services,Finance,Supplies & Services,"Printing, Stationery & General Office Expenses",Photocopying Costs,29/11/2018,256371,592.51,Ricoh Uk Ltd
Environmental & Regulatory,Waste management,Environmental,Employees,Indirect Employee Expenses,Agency Staff - Waged Posts,22/11/2018,256281,592.67,24-7 Staffing
Cultural & Related,Culture & Heritage,Community and Leisure ,Supplies & Services,Miscellaneous Expenses,Booking Of Acts,22/11/2018,256508,600,Goblin Entertainments Ltd
Cultural & Related,Culture & Heritage,Community and Leisure ,Supplies & Services,Miscellaneous Expenses,Booking Of Acts,29/11/2018,256918,600,Trj Management
Central Services to the Public,Management & Support Services,IT,Supplies & Services,Services,Training Courses,22/11/2018,256283,600,Idox Software Ltd
Environmental & Regulatory,Waste management,Environmental,Employees,Indirect Employee Expenses,Agency Staff - Waged Posts,15/11/2018,256031,600.76,Simple Recruitment Services Ltd
Planning & Development,Development Control,Planning & Building,Supplies & Services,"Printing, Stationery & General Office Expenses",Stationery,22/11/2018,255121,601.06,Lyreco Uk Ltd
Central Services to the Public,Local Tax Collection,Revenues,Employees,Indirect Employee Expenses,Temporary Staff,08/11/2018,255094,603.08,Venn Group
Housing Services,Homelessness,Housing and Environmental Health ,Supplies & Services,Grants & Subscriptions,Grants,08/11/2018,254844,606.8,Beckcare Homes Ltd
Central Services to the Public,Management & Support Services,Estates and Economic Development ,Third Party Payments,Other Establishments,Private Contractors,15/11/2018,255710,610,Darcy Products Ltd
Environmental & Regulatory,Waste management,Environmental,Supplies & Services,"Equipment, Furniture & Materials",Purchase Equip + Materials,15/11/2018,255678,615.5,Lockshop Warehouse Ltd
Environmental & Regulatory,Regulatory Services,Housing and Environmental Health ,Third Party Payments,Other Establishments,Private Contractors,29/11/2018,256954,621,Cedar Pest Ltd
Planning & Development,Economic Development,Estates and Economic Development ,Supplies & Services,Services,Training Courses,29/11/2018,256989,622.5,Bowyer Engineering Ltd
Central Services to the Public,Local Tax Collection,Revenues,Supplies & Services,Services,External Training Consultants,28/11/2018,256896,625,Airey Consultancy Services Ltd
"Highways, Roads & Transport",Parking Services,Plan Pol & Transport,Supplies & Services,"Equipment, Furniture & Materials",Purchase Equip + Materials,29/11/2018,256990,630,Reveal Media Ltd
Environmental & Regulatory,Waste management,Environmental,Transport Related Expenditure,Direct Transport Costs,Repair Materials,08/11/2018,254530,633.61,Pitter Commercials Ltd
Cultural & Related,Recreation & Sport,Community and Leisure ,Supplies & Services,"Equipment, Furniture & Materials",Purchase Equip + Materials,08/11/2018,252856,634,Broxap Limited (Stadia Sports )
Central Services to the Public,Management & Support Services,Revenues,Supplies & Services,"Equipment, Furniture & Materials",Purchase Equip + Materials,29/11/2018,251754,640,Genius Within Cic
Cultural & Related,Open Spaces,Environmental,Supplies & Services,"Equipment, Furniture & Materials",Purchase Equip + Materials,22/11/2018,256319,640.2,Skyguard Ltd
Cultural & Related,Tourism,Estates and Economic Development ,Supplies & Services,"Printing, Stationery & General Office Expenses",External Printing,08/11/2018,255137,648,Bulpitt Print Ltd
Cultural & Related,Culture & Heritage,Community and Leisure ,Supplies & Services,Miscellaneous Expenses,Booking Of Acts,01/11/2018,254554,650,Personal Data - Data Protection Act 1998
Cultural & Related,Culture & Heritage,Community and Leisure ,Supplies & Services,Miscellaneous Expenses,Booking Of Acts,01/11/2018,253141,650,Flying Colours Entertainment Ltd
Environmental & Regulatory,Waste management,Environmental,Transport Related Expenditure,Direct Transport Costs,Repair Materials,15/11/2018,255097,654.92,Dennis Eagle Ltd
Central Services to the Public,Local Tax Collection,Revenues,Supplies & Services,Communications & Computing,Software Maintenance,15/11/2018,255716,657.5,Victoria Solutions Limited
Environmental & Regulatory,Waste management,Environmental,Supplies & Services,Services,Training Courses,01/11/2018,254135,659.84,Terberg Matec Uk Limited
Environmental & Regulatory,Waste management,Environmental,Employees,Indirect Employee Expenses,Agency Staff - Waged Posts,01/11/2018,254585,661.05,24-7 Staffing
Central Services to the Public,Local Tax Collection,Revenues,Supplies & Services,"Printing, Stationery & General Office Expenses",Postage Costs,08/11/2018,255108,664.42,Royal Mail Group Ltd
Planning & Development,Community Development,Community and Leisure ,Supplies & Services,Grants & Subscriptions,Grants,08/11/2018,255458,667,Kimpton Parish Council
Central Services to the Public,Management & Support Services,Estates and Economic Development ,Third Party Payments,Private contractors,Main Contractor Costs,15/11/2018,255712,675,Healthy Buildings International
Environmental & Regulatory,Regulatory Services,Housing and Environmental Health ,Employees,Indirect Employee Expenses,Temporary Staff,01/11/2018,253001,675.2,The Oyster Partnership Ltd
Central Services to the Public,Management & Support Services,Revenues,Supplies & Services,"Equipment, Furniture & Materials",Equipment Lease Rentals,15/11/2018,255742,679.71,Pitney Bowes Finance Ltd
Central Services to the Public,Management & Support Services,Revenues,Supplies & Services,"Equipment, Furniture & Materials",Equipment Lease Rentals,22/11/2018,255672,679.71,Pitney Bowes Limited
Cultural & Related,Culture & Heritage,Community and Leisure ,Supplies & Services,Miscellaneous Expenses,Booking Of Acts,29/11/2018,256934,680,The Sounds That History Saved Agency
Cultural & Related,Open Spaces,Environmental,Third Party Payments,Other Establishments,Private Contractors,29/11/2018,257096,689.89,Ivan Gibson Agricultural Contractor
External Trading Accounts,Business Parks,Estates and Economic Development ,Supplies & Services,Miscellaneous Expenses,Waste Collection,08/11/2018,255159,690.6,Basingstoke Skip Hire & Sthrn Waste Mgt Ltd
Central Services to the Public,Management & Support Services,Finance,Supplies & Services,Communications & Computing,Software Maintenance,08/11/2018,255156,708.71,Bottomline Technologies Ltd
Central Services to the Public,Local Tax Collection,Revenues,Supplies & Services,Communications & Computing,Software Maintenance,08/11/2018,255156,708.72,Bottomline Technologies Ltd
Central Services to the Public,Management & Support Services,Finance,Supplies & Services,"Printing, Stationery & General Office Expenses",Postage Costs,01/11/2018,254499,718.56,Whistl Uk Ltd
Cultural & Related,Open Spaces,Environmental,Supplies & Services,Miscellaneous Expenses,Waste Collection,01/11/2018,253714,722.2,Raymond Brown Waste Solutions Ltd
Environmental & Regulatory,Waste management,Environmental,Transport Related Expenditure,Direct Transport Costs,Repair Materials,22/11/2018,255722,723.39,Dennis Eagle Ltd
Cultural & Related,Recreation & Sport,Community and Leisure ,Premises related Expenditure,Cleaning and domestic supplies,Contract Cleaning - Non Estates,22/11/2018,256280,724.54,Hi-Spec Facilities Services Plc
Cultural & Related,Open Spaces,Community and Leisure ,Premises related Expenditure,Cleaning and domestic supplies,Contract Cleaning - Non Estates,22/11/2018,256280,724.54,Hi-Spec Facilities Services Plc
Planning & Development,Development Control,Planning & Building,Supplies & Services,Miscellaneous Expenses,Health And Safety,22/11/2018,256319,733.32,Skyguard Ltd
"Highways, Roads & Transport",Highways and roads - maintenance,Plan Pol & Transport,Supplies & Services,Miscellaneous Expenses,Health And Safety,22/11/2018,256319,733.32,Skyguard Ltd
Cultural & Related,Recreation & Sport,Estates and Economic Development ,Premises related Expenditure,Water Services,Water And Sewerage Charges,01/11/2018,254601,739.81,Business Stream
Central Services to the Public,Management & Support Services,IT,Supplies & Services,"Equipment, Furniture & Materials",Maintenance Equip + Materials,22/11/2018,256328,741.67,Quadrant Security Group Ltd
Central Services to the Public,Management & Support Services,Estates and Economic Development ,Third Party Payments,Private contractors,Main Contractor Costs,01/11/2018,254597,750,Rjb M & E
Environmental & Regulatory,Regulatory Services,Estates and Economic Development ,Supplies & Services,Grants & Subscriptions,Contributions,15/11/2018,256039,750,The Bridge
Environmental & Regulatory,Regulatory Services,Housing and Environmental Health ,Employees,Indirect Employee Expenses,Advertising Of Vacancies,08/11/2018,254716,750,Chartered Inst. Of Environmental Health
Central Services to the Public,Management & Support Services,IT,Supplies & Services,"Equipment, Furniture & Materials",IT Supp and Serv AMP,29/11/2018,256661,750.55,Tet Ltd
Cultural & Related,Open Spaces,Environmental,Supplies & Services,Miscellaneous Expenses,Waste Collection,08/11/2018,255178,751.84,Raymond Brown Waste Solutions Ltd
Housing Services,Homelessness,Housing and Environmental Health ,Supplies & Services,"Equipment, Furniture & Materials",Purchase Equip + Materials,22/11/2018,256319,756.6,Skyguard Ltd
Central Services to the Public,Management & Support Services,Finance,Supplies & Services,"Printing, Stationery & General Office Expenses",Postage Costs,15/11/2018,255433,758.92,Whistl Uk Ltd
"Highways, Roads & Transport",Highways and roads - maintenance,Plan Pol & Transport,Premises related Expenditure,Repairs Alterations & Maintenance of Buildings,General Repairs,22/11/2018,256617,776.74,Externiture Ltd
Central Services to the Public,Management & Support Services,Estates and Economic Development ,Third Party Payments,Other Establishments,Private Contractors,08/11/2018,255429,780,Protec Roofing Southern Ltd
Cultural & Related,Recreation & Sport,Community and Leisure ,Premises related Expenditure,Repairs Alterations & Maintenance of Buildings,Estates premises costs - AMP,08/11/2018,252856,785,Broxap Limited (Stadia Sports )
Cultural & Related,Culture & Heritage,Community and Leisure ,Supplies & Services,Miscellaneous Expenses,Booking Of Acts,22/11/2018,256294,800,Torn Off Strips (Torn Entertainment)
Central Services to the Public,Management & Support Services,Legal & Democratic,Supplies & Services,Services,Legal Fees,29/11/2018,256312,800,Cornerstone Barristers
Central Services to the Public,Management & Support Services,Finance,Supplies & Services,"Printing, Stationery & General Office Expenses",Postage Costs,08/11/2018,254777,801.69,Whistl Uk Ltd
Central Services to the Public,Management & Support Services,Estates and Economic Development ,Premises related Expenditure,Water Services,Water And Sewerage Charges,22/11/2018,255911,806.2,Business Stream
Planning & Development,Economic Development,Estates and Economic Development ,Supplies & Services,Miscellaneous Expenses,Promotions / Special Events,08/11/2018,255113,833.33,Mccrimmon & Reid
Central Services to the Public,Management & Support Services,Estates and Economic Development ,Supplies & Services,Miscellaneous Expenses,Health And Safety,22/11/2018,256319,838.08,Skyguard Ltd
Central Services to the Public,Management & Support Services,Finance,Employees,Indirect Employee Expenses,Temporary Staff,01/11/2018,253010,841,Chartered Institute Of Internal Auditors
Central Services to the Public,Management & Support Services,HR Services,Supplies & Services,Miscellaneous Expenses,Medical Fees,22/11/2018,256537,841.44,Flu Xpress Ltd
Central Services to the Public,Management & Support Services,HR Services,Supplies & Services,Miscellaneous Expenses,Medical Fees,15/11/2018,254505,856.82,Flu Xpress Ltd
Central Services to the Public,Management & Support Services,Estates and Economic Development ,Supplies & Services,"Equipment, Furniture & Materials",Equipment Hire,22/11/2018,256361,862.5,Crown Water & Coffee
Environmental & Regulatory,Waste management,Environmental,Employees,Indirect Employee Expenses,Agency Staff - Waged Posts,01/11/2018,254587,873.95,24-7 Staffing
Cultural & Related,Open Spaces,Environmental,Supplies & Services,Services,Training Courses,15/11/2018,255856,875,Dale Valley Training
Environmental & Regulatory,Regulatory Services,Housing and Environmental Health ,Supplies & Services,Miscellaneous Expenses,Other Miscellaneous Costs,15/11/2018,255849,880,Anton Vets Ltd
Central Services to the Public,Management & Support Services,Estates and Economic Development ,Third Party Payments,Other Establishments,Private Contractors,08/11/2018,255428,887,Smart Securtiy Systems Ltd
External Trading Accounts,Business Parks,Estates and Economic Development ,Premises related Expenditure,Grounds Maintenance Costs,Non Contract Tree Works,29/11/2018,256656,902.2,Gristwood & Toms Ltd
Cultural & Related,Open Spaces,Environmental,Supplies & Services,Miscellaneous Expenses,Waste Collection,29/11/2018,256991,911.44,Raymond Brown Waste Solutions Ltd
Environmental & Regulatory,Street Cleansing (not chargeable to Highways),Environmental,Supplies & Services,"Equipment, Furniture & Materials",Purchase Equip + Materials,22/11/2018,255197,920,Sweeperhire
Central Services to the Public,Management & Support Services,Chief Executive's,Supplies & Services,"Printing, Stationery & General Office Expenses",Photocopying Costs,29/11/2018,256375,928.24,Ricoh Uk Ltd
Central Services to the Public,Management & Support Services,Environmental,Transport Related Expenditure,Direct Transport Costs,Repair Materials,15/11/2018,255335,929.69,Ats Euromaster Limited
Environmental & Regulatory,Waste management,Environmental,Employees,Indirect Employee Expenses,Agency Staff - Waged Posts,01/11/2018,254584,934.91,24-7 Staffing
Environmental & Regulatory,Regulatory Services,Housing and Environmental Health ,Supplies & Services,Grants and subscriptions,Capital Grants,01/11/2018,254888,942,Epw Construction Ltd
Central Services to the Public,Local Tax Collection,Revenues,Employees,Indirect Employee Expenses,Temporary Staff,01/11/2018,254543,945.91,Venn Group
Cultural & Related,Open Spaces,Environmental,Transport Related Expenditure,Direct Transport Costs,Repair Materials,29/11/2018,256667,948.46,T H White Ltd
Cultural & Related,Recreation & Sport,Estates and Economic Development ,Premises related Expenditure,Energy Costs,Electricity,22/11/2018,256305,959.88,British Gas Business
Planning & Development,Community Development,Community and Leisure ,Supplies & Services,Grants & Subscriptions,Grants,21/11/2018,256541,960,Longparish Community Association
Central Services to the Public,Management & Support Services,HR Services,Supplies & Services,Services,Training Courses,08/11/2018,253673,975,Acas
Cultural & Related,Open Spaces,Community and Leisure ,Supplies & Services,"Equipment, Furniture & Materials",Purchase Equip + Materials,01/11/2018,252792,990,Lubbe & Sons Ltd
Planning & Development,Development Control,Planning & Building,Supplies & Services,Communications & Computing,Hardware Maintenance,15/11/2018,255174,995,Temple Knight Plc
Planning & Development,Community Development,Community and Leisure ,Supplies & Services,Grants & Subscriptions,Grants,22/11/2018,256651,1000,Chilbolton Parish Council
Cultural & Related,Culture & Heritage,Community and Leisure ,Third Party Payments,Private contractors,Main Contractor Costs,29/11/2018,256919,1000,Personal Data - Data Protection Act 1998
Planning & Development,Community Development,Community and Leisure ,Supplies & Services,Grants & Subscriptions,Grants,28/11/2018,257089,1000,Awbridge War Memorial Trust
Cultural & Related,Open Spaces,Community and Leisure ,Premises related Expenditure,Grounds Maintenance Costs,Gm - Additional Works,22/11/2018,256627,1024,Personal Data - Data Protection Act 1998
Central Services to the Public,Elections,Legal & Democratic,Supplies & Services,"Printing, Stationery & General Office Expenses",Postage Costs,08/11/2018,254547,1025.11,Financial Data Management Plc
Planning & Development,Development Control,Planning & Building,Supplies & Services,Communications & Computing,Hardware Maintenance,29/11/2018,256944,1030.79,Temple Knight Plc
Environmental & Regulatory,Waste management,Environmental,Employees,Indirect Employee Expenses,Agency Staff - Waged Posts,01/11/2018,254589,1031.72,24-7 Staffing
Central Services,Corporate & Democratic Core,Corporate & Democratic,Supplies & Services,Miscellaneous Expenses,Design Fees,08/11/2018,254548,1034,Cammegh Davies Fleming
Cultural & Related,Culture & Heritage,Community and Leisure ,Supplies & Services,Catering,Non-Contract Catering,08/11/2018,254718,1047.04,Carlsberg Uk Ltd
Central Services to the Public,Elections,Legal & Democratic,Supplies & Services,"Printing, Stationery & General Office Expenses",Postage Costs,08/11/2018,254845,1052.57,Financial Data Management Plc
Cultural & Related,Open Spaces,Environmental,Supplies & Services,Services,Training Courses,15/11/2018,255905,1065,Dale Valley Training
"Highways, Roads & Transport",Parking Services,Plan Pol & Transport,Supplies & Services,Communications & Computing,Software Maintenance,01/11/2018,253721,1080,Cale Briparc Ltd
Cultural & Related,Recreation & Sport,Community and Leisure ,Supplies & Services,Miscellaneous Expenses,Promotions / Special Events,29/11/2018,255721,1083.33,Parkrun Ltd
Central Services to the Public,Management & Support Services,IT,Supplies & Services,"Equipment, Furniture & Materials",IT Supp and Serv AMP,15/11/2018,256037,1118,Pure Technology Group
Central Services to the Public,Management & Support Services,Estates and Economic Development ,Premises related Expenditure,Repairs Alterations & Maintenance of Buildings,Building Maint - Non Estates,01/11/2018,254596,1124,Rjb M & E
Cultural & Related,Culture & Heritage,Community and Leisure ,Supplies & Services,"Printing, Stationery & General Office Expenses",Licences / Affiliation Fees,29/11/2018,256925,1137.75,Ppl Prs Ltd
Cultural & Related,Open Spaces,Community and Leisure ,Premises related Expenditure,Repairs Alterations & Maintenance of Buildings,Estates premises costs - AMP,08/11/2018,254154,1150,Purbeck Civil Engineering Limited
Environmental & Regulatory,Community Development,Community and Leisure ,Supplies & Services,Miscellaneous Expenses,Health And Safety,22/11/2018,256319,1152.36,Skyguard Ltd
Central Services to the Public,Management & Support Services,Estates and Economic Development ,Third Party Payments,Private contractors,Main Contractor Costs,01/11/2018,248447,1156.8,Atf Supplies Nationwide Ltd
Cultural & Related,Open Spaces,Community and Leisure ,Premises related Expenditure,Grounds Maintenance Costs,Non Contract Tree Works,29/11/2018,256052,1157.7,Hrg Tree Services Ltd
Cultural & Related,Recreation & Sport,Community and Leisure ,Premises related Expenditure,Repairs Alterations & Maintenance of Buildings,Planned Maintenance - Non Est,15/11/2018,255729,1170,Rgv Engineering Ltd
"Highways, Roads & Transport",Highways and roads - maintenance,Plan Pol & Transport,Supplies & Services,Miscellaneous Expenses,Advertising,01/11/2018,252982,1209.3,Hampshire Media Limited
Central Services to the Public,Management & Support Services,Estates and Economic Development ,Employees,Indirect Employee Expenses,Temporary Staff,08/11/2018,254606,1221,Matchtech Group Uk Ltd
Central Services to the Public,Management & Support Services,Estates and Economic Development ,Employees,Indirect Employee Expenses,Temporary Staff,08/11/2018,255175,1221,Matchtech Group Uk Ltd
Central Services to the Public,Management & Support Services,Estates and Economic Development ,Employees,Indirect Employee Expenses,Agency Staff - Waged Posts,29/11/2018,255889,1221,Matchtech Group Uk Ltd
Central Services to the Public,Management & Support Services,Estates and Economic Development ,Employees,Indirect Employee Expenses,Agency Staff - Waged Posts,29/11/2018,256973,1221,Matchtech Group Uk Ltd
Central Services to the Public,Management & Support Services,Estates and Economic Development ,Employees,Indirect Employee Expenses,Agency Staff - Waged Posts,29/11/2018,257085,1221,Matchtech Group Uk Ltd
Cultural & Related,Open Spaces,Environmental,Third Party Payments,Other Establishments,Private Contractors,08/11/2018,255331,1221.86,Ivan Gibson Agricultural Contractor
Central Services to the Public,Management & Support Services,Finance,Supplies & Services,"Printing, Stationery & General Office Expenses",Postage Costs,29/11/2018,256902,1229.47,Whistl Uk Ltd
Cultural & Related,Open Spaces,Community and Leisure ,Premises related Expenditure,Grounds Maintenance Costs,Non Contract Tree Works,29/11/2018,256033,1234.88,Hrg Tree Services Ltd
Central Services to the Public,Management & Support Services,Estates and Economic Development ,Third Party Payments,Other Establishments,Private Contractors,15/11/2018,255736,1237.97,Btu Installation & Maintenance Ltd
Central Services to the Public,Management & Support Services,Finance,Supplies & Services,"Printing, Stationery & General Office Expenses",Postage Costs,22/11/2018,256048,1243.97,Whistl Uk Ltd
Planning & Development,Economic Development,Estates and Economic Development ,Supplies & Services,Grants & Subscriptions,Grants,08/11/2018,255114,1250,G T Marketing & Pr
Cultural & Related,Open Spaces,Community and Leisure ,Premises related Expenditure,Grounds Maintenance Costs,Gm - Additional Works,22/11/2018,256624,1254,Personal Data - Data Protection Act 1998
"Highways, Roads & Transport",Public Transport,Plan Pol & Transport,Third Party Payments,Transport Operators in Respect of Concessionary Fares,Voluntary Orgs Reimbursement,22/11/2018,256634,1257.5,Romsey Good Neighbours
Cultural & Related,Culture & Heritage,Community and Leisure ,Supplies & Services,Miscellaneous Expenses,Promotions / Special Events,29/11/2018,256913,1260,Fence Hire (Southern) Ltd
Central Services to the Public,Local Tax Collection,Revenues,Supplies & Services,Miscellaneous Expenses,All Pay Fees,08/11/2018,255173,1263.92,Allpay Limited
Central Services to the Public,Local Tax Collection,Revenues,Supplies & Services,Services,Professional Fees,01/11/2018,254575,1265,Inform Cpi Ltd
Central Services to the Public,Management & Support Services,Legal & Democratic,Employees,Indirect Employee Expenses,Agency Staff - Waged Posts,08/11/2018,254542,1336.08,Venn Group
Central Services to the Public,Management & Support Services,Estates and Economic Development ,Employees,Indirect Employee Expenses,Agency Staff - Waged Posts,29/11/2018,255888,1350,Matchtech Group Uk Ltd
Planning & Development,Development Control,Planning & Building,Third Party Payments,Commuted Sum,CIL Contribution,01/11/2018,254882,1354.5,Penton Grafton Parish Council
Central Services to the Public,Management & Support Services,Legal & Democratic,Employees,Indirect Employee Expenses,Agency Staff - Waged Posts,08/11/2018,255095,1355.46,Venn Group
"Highways, Roads & Transport",Parking Services,Plan Pol & Transport,Supplies & Services,"Printing, Stationery & General Office Expenses",External Printing,01/11/2018,254536,1380.6,Paperwork (Uk) Ltd
Central Services to the Public,Management & Support Services,Legal & Democratic,Employees,Indirect Employee Expenses,Agency Staff - Waged Posts,15/11/2018,255739,1383.96,Venn Group
Central Services to the Public,Management & Support Services,Estates and Economic Development ,Employees,Indirect Employee Expenses,Agency Staff - Waged Posts,29/11/2018,256972,1395,Matchtech Group Uk Ltd
Central Services,Corporate & Democratic Core,Corporate & Democratic,Supplies & Services,Catering,Catering,01/11/2018,253426,1402.86,Hawk Conservancy Trust Ltd
Housing Services,"Housing strategy, advice and enabling",Housing and Environmental Health ,Employees,Indirect Employee Expenses,Post Entry Training,29/11/2018,257080,1425,Upkeep Training
Central Services to the Public,Management & Support Services,Estates and Economic Development ,Supplies & Services,Miscellaneous Expenses,Health And Safety,22/11/2018,256319,1466.64,Skyguard Ltd
Cultural & Related,Open Spaces,Environmental,Third Party Payments,Other Establishments,Private Contractors,29/11/2018,257097,1477.27,Ivan Gibson Agricultural Contractor
Central Services to the Public,Management & Support Services,Legal & Democratic,Supplies & Services,Services,Professional Fees,01/11/2018,253565,1500,Cornerstone Barristers
External Trading Accounts,Property Investments,Estates and Economic Development ,Supplies & Services,Services,Professional Fees,08/11/2018,255183,1520,Dentons Ukmea Llp
Environmental & Regulatory,Regulatory Services,Housing and Environmental Health ,Supplies & Services,Grants and subscriptions,Capital Grants,22/11/2018,256652,1525,Pm Design
Cultural & Related,Open Spaces,Community and Leisure ,Premises related Expenditure,Repairs Alterations & Maintenance of Buildings,Estates premises costs - AMP,08/11/2018,252313,1525,Wake'S Decorating Ltd
Environmental & Regulatory,Waste management,Environmental,Transport Related Expenditure,Direct Transport Costs,Tyres,22/11/2018,255918,1541.97,Tructyre Fleet Management
Cultural & Related,Open Spaces,Environmental,Transport Related Expenditure,Direct Transport Costs,Repair Materials,08/11/2018,254866,1557.34,R Hunt (Agricultural Engineers) Ltd
Environmental & Regulatory,Waste management,Environmental,Transport Related Expenditure,Direct Transport Costs,Repair Materials,15/11/2018,255473,1576.12,Dennis Eagle Ltd
Cultural & Related,Open Spaces,Community and Leisure ,Premises related Expenditure,Grounds Maintenance Costs,Gm - Additional Works,22/11/2018,256630,1588,Personal Data - Data Protection Act 1998
Environmental & Regulatory,Waste management,Environmental,Transport Related Expenditure,Direct Transport Costs,Repair Materials,22/11/2018,256297,1591.24,Terberg Matec Uk Limited
Environmental & Regulatory,Regulatory Services,Housing and Environmental Health ,Supplies & Services,"Equipment, Furniture & Materials",Purchase Equip + Materials,22/11/2018,256319,1606.32,Skyguard Ltd
Central Services to the Public,Management & Support Services,IT,Supplies & Services,"Equipment, Furniture & Materials",IT Supp and Serv AMP,15/11/2018,255859,1629.8,Pure Technology Group
Central Services to the Public,Management & Support Services,Plan Pol & Transport,Premises related Expenditure,Repairs Alterations & Maintenance of Buildings,General Repairs,08/11/2018,253948,1660.13,Signway Supplies (Datchet Ltd)
Central Services to the Public,Management & Support Services,Estates and Economic Development ,Employees,Indirect Employee Expenses,Temporary Staff,08/11/2018,254127,1665,Matchtech Group Uk Ltd
Central Services to the Public,Management & Support Services,Estates and Economic Development ,Employees,Indirect Employee Expenses,Temporary Staff,08/11/2018,254607,1665,Matchtech Group Uk Ltd
Central Services to the Public,Management & Support Services,Estates and Economic Development ,Employees,Indirect Employee Expenses,Temporary Staff,08/11/2018,255176,1665,Matchtech Group Uk Ltd
Environmental & Regulatory,Regulatory Services,Housing and Environmental Health ,Supplies & Services,Miscellaneous Expenses,Other Miscellaneous Costs,08/11/2018,255151,1707.48,Newbury Lodge Kennels
External Trading Accounts,Business Parks,Estates and Economic Development ,Supplies & Services,Services,Professional Fees,15/11/2018,255435,1710,Lavat Consulting Limited T/A Pstax
Environmental & Regulatory,Waste management,Environmental,Employees,Indirect Employee Expenses,Agency Staff - Waged Posts,22/11/2018,256616,1733,24-7 Staffing
Central Services to the Public,Elections,Legal & Democratic,Supplies & Services,Services,Training Courses,08/11/2018,254848,1750.01,The Association Of Electoral Administrators
External Trading Accounts,Business Parks,Estates and Economic Development ,Supplies & Services,Services,Professional Fees,08/11/2018,255086,1775,Gep Environmental Ltd
Planning & Development,Development Control,Planning & Building,Supplies & Services,"Printing, Stationery & General Office Expenses",Photocopying Costs,22/11/2018,256019,1795.08,Ricoh Uk Ltd
Central Services to the Public,Management & Support Services,Estates and Economic Development ,Third Party Payments,Other Establishments,Contract Catering,22/11/2018,255914,1801.45,Edwards And Ward Ltd
Planning & Development,Planning Policy,Plan Pol & Transport,Supplies & Services,Services,Project Consultancy - Policy,08/11/2018,252808,1810,The Terra Firma Consultancy Ltd
"Highways, Roads & Transport",Highways and roads - maintenance,Plan Pol & Transport,Supplies & Services,Miscellaneous Expenses,Advertising,01/11/2018,252980,1834.8,Hampshire Media Limited
"Highways, Roads & Transport",Highways and roads - maintenance,Plan Pol & Transport,Supplies & Services,Miscellaneous Expenses,Advertising,01/11/2018,252981,1834.8,Hampshire Media Limited
"Highways, Roads & Transport",Highways and roads - maintenance,Plan Pol & Transport,Supplies & Services,Miscellaneous Expenses,Advertising,01/11/2018,252979,1844.8,Hampshire Media Limited
Central Services to the Public,Management & Support Services,Estates and Economic Development ,Third Party Payments,Other Establishments,Contract Catering,22/11/2018,255917,1846,Edwards And Ward Ltd
Environmental & Regulatory,Waste management,Environmental,Employees,Indirect Employee Expenses,Agency Staff - Waged Posts,15/11/2018,255664,1855.89,24-7 Staffing
Cultural & Related,Recreation & Sport,Community and Leisure ,Supplies & Services,Services,Professional Fees,01/11/2018,253961,1890,Watts Group Ltd
Planning & Development,Building Control,Planning & Building,Employees,Indirect Employee Expenses,Temporary Staff,15/11/2018,255686,1905,Brg Interim Solutions Ltd
Environmental & Regulatory,Regulatory Services,Housing and Environmental Health ,Supplies & Services,Grants and subscriptions,Capital Grants,22/11/2018,256683,1912.02,Prism Medical Uk
Central Services to the Public,Local Tax Collection,Revenues,Supplies & Services,Communications & Computing,Software Maintenance,08/11/2018,254772,1912.5,Northgate Public Services Uk Ltd
Cultural & Related,Open Spaces,Community and Leisure ,Premises related Expenditure,Grounds Maintenance Costs,Gm - Additional Works,08/11/2018,255337,1915,Fernden Construction (Winchester) Ltd
Planning & Development,Development Control,Planning & Building,Third Party Payments,Commuted Sum,CIL Contribution,01/11/2018,254880,1926.42,Chilworth Parish Council
Planning & Development,Development Control,Planning & Building,Third Party Payments,Commuted Sum,CIL Contribution,08/11/2018,255472,1929.38,East Dean Parish Council
Environmental & Regulatory,Regulatory Services,Estates and Economic Development ,Premises related Expenditure,Cleaning and domestic supplies,Contract Cleaning - Non Estates,22/11/2018,256280,1932.11,Hi-Spec Facilities Services Plc
Planning & Development,Building Control,Planning & Building,Employees,Indirect Employee Expenses,Temporary Staff,01/11/2018,254576,1950,Brg Interim Solutions Ltd
Central Services to the Public,Management & Support Services,Estates and Economic Development ,Supplies & Services,Miscellaneous Expenses,Health And Safety,22/11/2018,256319,1955.52,Skyguard Ltd
Central Services to the Public,Local Tax Collection,Revenues,Supplies & Services,Communications & Computing,Software Maintenance,15/11/2018,255716,1972.5,Victoria Solutions Limited
Planning & Development,Building Control,Planning & Building,Employees,Indirect Employee Expenses,Temporary Staff,08/11/2018,253340,1980,Brg Interim Solutions Ltd
External Trading Accounts,Property Investments,Estates and Economic Development ,Premises related Expenditure,Repairs Alterations & Maintenance of Buildings,Salt & Gritting,22/11/2018,256601,1989.96,Gritit Ltd
Central Services to the Public,Management & Support Services,Plan Pol & Transport,Premises related Expenditure,Repairs Alterations & Maintenance of Buildings,General Repairs,15/11/2018,255463,1993.2,Irvine Grenson Ltd
Planning & Development,Building Control,Planning & Building,Employees,Indirect Employee Expenses,Temporary Staff,15/11/2018,253716,2010,Brg Interim Solutions Ltd
"Highways, Roads & Transport",Public Transport,Plan Pol & Transport,Third Party Payments,Transport Operators in Respect of Concessionary Fares,Voluntary Orgs Reimbursement,29/11/2018,256976,2019,Andover Neighbourcare
Planning & Development,Development Control,Planning & Building,Employees,Indirect Employee Expenses,Temporary Staff,29/11/2018,256945,2019.75,Brg Interim Solutions Ltd
Planning & Development,Building Control,Planning & Building,Employees,Indirect Employee Expenses,Temporary Staff,08/11/2018,255109,2024.1,Brg Interim Solutions Ltd
Cultural & Related,Culture & Heritage,Community and Leisure ,Supplies & Services,Miscellaneous Expenses,Booking Of Acts,01/11/2018,254535,2030,Lms Worldwide Ltd
Housing Services,Homelessness,Housing and Environmental Health ,Supplies & Services,Communications & Computing,Computer Software,29/11/2018,252817,2107.62,Civica Uk Ltd
Cultural & Related,Recreation & Sport,Estates and Economic Development ,Premises related Expenditure,Water Services,Water And Sewerage Charges,01/11/2018,254602,2119.51,Business Stream
Planning & Development,Planning Policy,Plan Pol & Transport,Supplies & Services,Services,Project Consultancy - Policy,01/11/2018,253410,2126.7,Hampshire County Council
Planning & Development,Building Control,Planning & Building,Employees,Indirect Employee Expenses,Temporary Staff,22/11/2018,256299,2180.25,Brg Interim Solutions Ltd
Cultural & Related,Culture & Heritage,Community and Leisure ,Supplies & Services,Miscellaneous Expenses,Booking Of Acts,22/11/2018,255432,2182.5,Vienna Festival Ballet
Central Services to the Public,Management & Support Services,Estates and Economic Development ,Premises related Expenditure,Repairs Alterations & Maintenance of Buildings,Building Maint - Non Estates,15/11/2018,255671,2188.52,Btu Installation & Maintenance Ltd
Environmental & Regulatory,Waste management,Environmental,Employees,Indirect Employee Expenses,Agency Staff - Waged Posts,22/11/2018,256281,2199.38,24-7 Staffing
Environmental & Regulatory,Regulatory Services,Housing and Environmental Health ,Supplies & Services,Grants and subscriptions,Capital Grants,15/11/2018,256081,2225,Liftability Ltd
Environmental & Regulatory,Waste management,Environmental,Employees,Indirect Employee Expenses,Agency Staff - Waged Posts,01/11/2018,254587,2285.9,24-7 Staffing
Environmental & Regulatory,Waste management,Environmental,Employees,Indirect Employee Expenses,Agency Staff - Waged Posts,01/11/2018,254584,2319.41,24-7 Staffing
Environmental & Regulatory,Regulatory Services,Housing and Environmental Health ,Supplies & Services,Grants and subscriptions,Capital Grants,22/11/2018,256654,2390,Bartram Building Maintenance Services
Central Services to the Public,Management & Support Services,IT,Supplies & Services,"Equipment, Furniture & Materials",IT Supp and Serv AMP,15/11/2018,255695,2400,Tet Ltd
Planning & Development,Community Development,Community and Leisure ,Supplies & Services,Grants & Subscriptions,Grants,01/11/2018,254883,2430,Michelmersh & Timsbury Parish Council
"Highways, Roads & Transport",Public Transport,Plan Pol & Transport,Third Party Payments,Transport Operators in Respect of Concessionary Fares,Voluntary Orgs Reimbursement,29/11/2018,256330,2443,Andover Neighbourcare
Cultural & Related,Open Spaces,Community and Leisure ,Premises related Expenditure,Repairs Alterations & Maintenance of Buildings,Estates premises costs - AMP,01/11/2018,252594,2450,Purbeck Civil Engineering Limited
Cultural & Related,Culture & Heritage,Community and Leisure ,Supplies & Services,Miscellaneous Expenses,Booking Of Acts,01/11/2018,254316,2451,B Collings Entertainments
Cultural & Related,Recreation & Sport,Community and Leisure ,Premises related Expenditure,Grounds Maintenance Costs,Gm - Additional Works,01/11/2018,252315,2468,Sports Courts Uk Ltd
Cultural & Related,Culture & Heritage,Community and Leisure ,Third Party Payments,Private contractors,Main Contractor Costs,08/11/2018,252381,2500,Rhb Partnership Llp
Housing Services,Housing Benefits ,Revenues,Supplies & Services,Communications & Computing,Software Maintenance,15/11/2018,255716,2511,Victoria Solutions Limited
Central Services to the Public,Local Tax Collection,Revenues,Supplies & Services,Communications & Computing,Software Maintenance,15/11/2018,255716,2511,Victoria Solutions Limited
Cultural & Related,Culture & Heritage,Community and Leisure ,Supplies & Services,Miscellaneous Expenses,Booking Of Acts,15/11/2018,256026,2554,Personal Data - Data Protection Act 1998
"Highways, Roads & Transport",Public Transport,Plan Pol & Transport,Third Party Payments,Transport Operators in Respect of Concessionary Fares,Voluntary Orgs Reimbursement,15/11/2018,255179,2608.5,Andover Neighbourcare
Environmental & Regulatory,Street Cleansing (not chargeable to Highways),Environmental,Supplies & Services,"Equipment, Furniture & Materials",Purchase Equip + Materials,15/11/2018,254774,2636.4,Imperial Polythene Products Ltd
Central Services to the Public,Management & Support Services,IT,Supplies & Services,Communications & Computing,Software Maintenance,22/11/2018,255732,2700,Automated Intelligence Ltd
External Trading Accounts,Business Parks,Estates and Economic Development ,Premises related Expenditure,Repairs Alterations & Maintenance of Buildings,Building Maint - Non Estates,15/11/2018,255709,2750,The Genesis Design Studio Ltd
Cultural & Related,Culture & Heritage,Community and Leisure ,Supplies & Services,Miscellaneous Expenses,Booking Of Acts,01/11/2018,254729,2776,Impatient Productions
Central Services to the Public,Management & Support Services,Estates and Economic Development ,Supplies & Services,"Equipment, Furniture & Materials",Purchase Materials (Job Cost),15/11/2018,255858,2779.28,Wolseley Uk Limited
Environmental & Regulatory,Regulatory Services,Housing and Environmental Health ,Supplies & Services,Grants and subscriptions,Capital Grants,15/11/2018,256071,2792.53,Lifestyle Solutions
Central Services,Corporate & Democratic Core,Corporate & Democratic,Supplies & Services,"Printing, Stationery & General Office Expenses",External Printing,22/11/2018,256604,2792.91,Mortons Print
Environmental & Regulatory,Waste management,Environmental,Employees,Indirect Employee Expenses,Agency Staff - Waged Posts,01/11/2018,254591,2793.73,24-7 Staffing
Planning & Development,Planning Policy,Plan Pol & Transport,Supplies & Services,Miscellaneous Expenses,S106 Funded Projects,22/11/2018,254871,2880,Stagecoach South
Environmental & Regulatory,Street Cleansing (not chargeable to Highways),Environmental,Supplies & Services,"Equipment, Furniture & Materials",Purchase Tools,01/11/2018,254319,2933.08,Tudor Environmental
Central Services to the Public,Management & Support Services,Legal & Democratic,Employees,Indirect Employee Expenses,Advertising Of Vacancies,29/11/2018,256306,2995,Local Government Lawyer
Cultural & Related,Culture & Heritage,Community and Leisure ,Supplies & Services,Services,Project Consultancy - Policy,01/11/2018,251996,3000,Test Valley Arts Foundation
Cultural & Related,Culture & Heritage,Community and Leisure ,Supplies & Services,Miscellaneous Expenses,Booking Of Acts,01/11/2018,254830,3002.66,Grt Music Group Limited
Environmental & Regulatory,Street Cleansing (not chargeable to Highways),Environmental,Supplies & Services,"Equipment, Furniture & Materials",Purchase Equip + Materials,15/11/2018,254773,3120,Imperial Polythene Products Ltd
Cultural & Related,Culture & Heritage,Community and Leisure ,Supplies & Services,Miscellaneous Expenses,Booking Of Acts,01/11/2018,254315,3129,Sweeney Entertainments
Environmental & Regulatory,Waste management,Environmental,Transport Related Expenditure,Direct Transport Costs,Repair Materials,08/11/2018,254759,3189.24,Dennis Eagle Ltd
Environmental & Regulatory,Waste management,Environmental,Employees,Indirect Employee Expenses,Agency Staff - Waged Posts,15/11/2018,255665,3211.75,24-7 Staffing
Cultural & Related,Culture & Heritage,Community and Leisure ,Supplies & Services,Miscellaneous Expenses,Booking Of Acts,29/11/2018,257158,3221.34,Jethro Enterprises Ltd
Cultural & Related,Culture & Heritage,Community and Leisure ,Supplies & Services,Communications & Computing,Communication Links,01/11/2018,254561,3252,Virgin Media Payments Ltd
Central Services to the Public,Management & Support Services,Environmental,Supplies & Services,Communications & Computing,Communication Links,01/11/2018,254560,3252,Virgin Media Payments Ltd
Cultural & Related,Culture & Heritage,Community and Leisure ,Supplies & Services,Miscellaneous Expenses,Booking Of Acts,29/11/2018,256950,3344.66,B Collings Entertainments
Environmental & Regulatory,Regulatory Services,Housing and Environmental Health ,Employees,Indirect Employee Expenses,Temporary Staff,01/11/2018,253002,3414.05,The Oyster Partnership Ltd
Planning & Development,Development Control,Planning & Building,Employees,Indirect Employee Expenses,Post Entry Training,01/11/2018,254550,3560,Oxford Brookes University
Planning & Development,Development Control,Planning & Building,Employees,Indirect Employee Expenses,Post Entry Training,01/11/2018,254551,3560,Oxford Brookes University
Central Services to the Public,Management & Support Services,IT,Supplies & Services,Communications & Computing,Software Maintenance,22/11/2018,256336,3582,Konica Minolta Business Soltns (Uk) Ltd
Central Services to the Public,Management & Support Services,Environmental,Supplies & Services,"Equipment, Furniture & Materials",Maintenance Equip + Materials,01/11/2018,254081,3675,Maha Uk Ltd
Central Services to the Public,Management & Support Services,Environmental,Transport Related Expenditure,Direct Transport Costs,Diesel,29/11/2018,256660,3778.95,Wp Group Limited
Central Services to the Public,Management & Support Services,Environmental,Transport Related Expenditure,Direct Transport Costs,Diesel,29/11/2018,256923,3823.05,Wp Group Limited
Environmental & Regulatory,Regulatory Services,Housing and Environmental Health ,Supplies & Services,Grants and subscriptions,Capital Grants,22/11/2018,256655,3830,Liftech Systems (Se) Ltd
Cultural & Related,Culture & Heritage,Community and Leisure ,Supplies & Services,Miscellaneous Expenses,Booking Of Acts,29/11/2018,256965,3855.34,Leola Music Ltd
Housing Services,Homelessness,Housing and Environmental Health ,Supplies & Services,Grants & Subscriptions,Grants,08/11/2018,253915,4000,Yellow Brick Road Projects
Cultural & Related,Open Spaces,Community and Leisure ,Supplies & Services,Grants & Subscriptions,Grants,08/11/2018,255424,4000,Fwag South East
Environmental & Regulatory,Regulatory Services,Housing and Environmental Health ,Supplies & Services,Grants and subscriptions,Capital Grants,08/11/2018,255460,4106.19,Hampshire Mobility Services
Cultural & Related,Open Spaces,Community and Leisure ,Premises related Expenditure,Repairs Alterations & Maintenance of Buildings,Estates premises costs - AMP,15/11/2018,254155,4170,Purbeck Civil Engineering Limited
Environmental & Regulatory,Waste management,Environmental,Supplies & Services,"Equipment, Furniture & Materials",Purchase Equip + Materials,22/11/2018,255853,4170.2,Egbert H Taylor & Co Ltd
Cultural & Related,Open Spaces,Community and Leisure ,Supplies & Services,"Equipment, Furniture & Materials",Purchase Equip + Materials,01/11/2018,254125,4214.32,Downs View Nurseries Ltd
Central Services to the Public,Management & Support Services,IT,Employees,Indirect Employee Expenses,Temporary Staff,15/11/2018,255439,4400,Vector Resourcing Ltd
Environmental & Regulatory,Regulatory Services,Housing and Environmental Health ,Supplies & Services,Grants and subscriptions,Capital Grants,01/11/2018,254887,4502.54,Acer Renovations Ltd
"Highways, Roads & Transport",Parking Services,Plan Pol & Transport,Supplies & Services,Services,Professional Fees,29/11/2018,256974,4513.39,Jade Security Services Ltd
Environmental & Regulatory,Street Cleansing (not chargeable to Highways),Environmental,Supplies & Services,"Equipment, Furniture & Materials",Purchase Equip + Materials,08/11/2018,254563,4582.48,Glasdon Uk Ltd
Environmental & Regulatory,Regulatory Services,Housing and Environmental Health ,Employees,Indirect Employee Expenses,Temporary Staff,08/11/2018,255135,4640.3,Danbro Workforce Solutions Ltd
Planning & Development,Development Control,Planning & Building,Third Party Payments,Commuted Sum,CIL Contribution,08/11/2018,255470,4650.19,Vernham Dean Parish Council
Central Services,Corporate & Democratic Core,Corporate & Democratic,Supplies & Services,Services,Insurance ,01/11/2018,254877,4694.09,Legal & General Assurance Society Ltd
"Highways, Roads & Transport",Parking Services,Plan Pol & Transport,Premises related Expenditure,Repairs Alterations & Maintenance of Buildings,Car Parks - Signs + Lines,15/11/2018,255181,4706.19,Coupe Line
External Trading Accounts,Business Parks,Estates and Economic Development ,Premises related Expenditure,Repairs Alterations & Maintenance of Buildings,Building Maint - Non Estates,15/11/2018,256059,4800,Spear Electrical Limited
Central Services to the Public,Management & Support Services,Environmental,Transport Related Expenditure,Direct Transport Costs,Diesel,15/11/2018,255320,4895.94,Wp Group Limited
Planning & Development,Development Control,Planning & Building,Third Party Payments,Commuted Sum,CIL Contribution,01/11/2018,254881,4918.34,North Baddesley Parish Council
Cultural & Related,Open Spaces,Community and Leisure ,Supplies & Services,"Equipment, Furniture & Materials",Purchase Equip + Materials,01/11/2018,253943,4970,Lubbe & Sons Ltd
Central Services to the Public,Management & Support Services,Estates and Economic Development ,Premises related Expenditure,Repairs Alterations & Maintenance of Buildings,Building Maint - Non Estates,15/11/2018,255427,4997.4,Brooks Electrical Services Ltd
Central Services to the Public,Management & Support Services,IT,Supplies & Services,Communications & Computing,Software Maintenance,01/11/2018,254754,5374.22,Oxygen Secure Systems
Planning & Development,Development Control,Planning & Building,Third Party Payments,Commuted Sum,CIL Contribution,01/11/2018,254884,5418,Wellow Parish Council
Central Services to the Public,Management & Support Services,Environmental,Transport Related Expenditure,Direct Transport Costs,Diesel,01/11/2018,254500,5489,Wp Group Limited
Central Services to the Public,Management & Support Services,IT,Support Services,IT,IT Hardware costs,22/11/2018,256043,5501.9,Cetus Solutions Ltd
Cultural & Related,Open Spaces,Environmental,Supplies & Services,"Equipment, Furniture & Materials",Purchase Tools,01/11/2018,254319,5540,Tudor Environmental
Planning & Development,Development Control,Planning & Building,Third Party Payments,Commuted Sum,CIL Contribution,01/11/2018,254885,5565,Goodworth Clatford P C
Environmental & Regulatory,"Cemetery, Cremation and Mortuary Services",Community and Leisure ,Premises related Expenditure,Repairs Alterations & Maintenance of Buildings,Estates premises costs - AMP,01/11/2018,252594,5574,Purbeck Civil Engineering Limited
Environmental & Regulatory,"Cemetery, Cremation and Mortuary Services",Community and Leisure ,Premises related Expenditure,Repairs Alterations & Maintenance of Buildings,Estates premises costs - AMP,01/11/2018,254556,5597,Personal Data - Data Protection Act 1998
Environmental & Regulatory,Waste management,Environmental,Supplies & Services,Miscellaneous Expenses,Recycling Bank Emptying,08/11/2018,253584,5765.55,Fcc Recycling (Uk) Ltd
Environmental & Regulatory,Waste management,Environmental,Supplies & Services,Miscellaneous Expenses,Recycling Bank Emptying,22/11/2018,256020,6044.71,Fcc Recycling (Uk) Ltd
Cultural & Related,Open Spaces,Community and Leisure ,Premises related Expenditure,Grounds Maintenance Costs,Gm - Additional Works,08/11/2018,253332,6384,Choice Plants
Cultural & Related,Culture & Heritage,Community and Leisure ,Supplies & Services,Miscellaneous Expenses,Promotions / Special Events,28/11/2018,256665,6395,Big Tv Uk Ltd
Environmental & Regulatory,Community Development,Community and Leisure ,Supplies & Services,Services,Professional Fees,22/11/2018,256038,6403.9,South Downs Leadership & Management Servs Ltd
Environmental & Regulatory,Regulatory Services,Housing and Environmental Health ,Supplies & Services,Grants and subscriptions,Capital Grants,08/11/2018,255474,6673.1,Sahar Building Services Ltd
Environmental & Regulatory,Regulatory Services,Housing and Environmental Health ,Supplies & Services,Grants and subscriptions,Capital Grants,15/11/2018,256064,6689.06,Sahar Building Services Ltd
Environmental & Regulatory,Waste management,Environmental,Supplies & Services,Miscellaneous Expenses,Recycling Bank Emptying,08/11/2018,253586,6817.18,Fcc Recycling (Uk) Ltd
Central Services to the Public,Management & Support Services,Estates and Economic Development ,Third Party Payments,Private contractors,Main Contractor Costs,08/11/2018,255444,6920,Safespec Building Services Ltd
Planning & Development,Development Control,Planning & Building,Supplies & Services,Services,Project Consultancy - Policy,08/11/2018,254540,6947.37,Hampshire County Council
Planning & Development,Planning Policy,Plan Pol & Transport,Supplies & Services,Services,Project Consultancy - Policy,01/11/2018,252590,7000,Nexus Planning Ltd
"Highways, Roads & Transport",Parking Services,Plan Pol & Transport,Supplies & Services,Communications & Computing,Computer Software,01/11/2018,253721,7368,Cale Briparc Ltd
Environmental & Regulatory,Regulatory Services,Housing and Environmental Health ,Supplies & Services,Grants and subscriptions,Capital Grants,22/11/2018,256653,7771.37,Spc Bathrooms Ltd
Environmental & Regulatory,Waste management,Environmental,Supplies & Services,"Equipment, Furniture & Materials",Purchase Equip + Materials,01/11/2018,250632,7800,Carbery Plastics
Cultural & Related,Culture & Heritage,Estates and Economic Development ,Premises related Expenditure,Repairs Alterations & Maintenance of Buildings,Estates premises costs - AMP,15/11/2018,255462,8008.85,Andover Glass Works Ltd
Central Services to the Public,Local Land Charges,Legal & Democratic,Supplies & Services,Miscellaneous Expenses,Land Charges Fees,15/11/2018,255881,8260,Hampshire County Council
Central Services to the Public,Management & Support Services,Estates and Economic Development ,Third Party Payments,Private contractors,Main Contractor Costs,29/11/2018,256980,8608.2,Ministry Of Play Ltd
Environmental & Regulatory,Waste management,Environmental,Supplies & Services,"Equipment, Furniture & Materials",Purchase Equip + Materials,08/11/2018,255110,9180,Mgb Plastics Ltd
Environmental & Regulatory,Waste management,Environmental,Supplies & Services,"Equipment, Furniture & Materials",Purchase Equip + Materials,15/11/2018,255693,9180,Mgb Plastics Ltd
Environmental & Regulatory,Waste management,Environmental,Supplies & Services,"Equipment, Furniture & Materials",Purchase Equip + Materials,15/11/2018,255693,9360,Mgb Plastics Ltd
Environmental & Regulatory,Community Development,Community and Leisure ,Third Party Payments,Other Local Authorities,Hampshire C C -Agency Service,01/11/2018,253338,9400,Romsey Community School
Cultural & Related,Recreation & Sport,Community and Leisure ,Premises related Expenditure,Grounds Maintenance Costs,Gm - Additional Works,15/11/2018,256024,9742.5,White Horse Contractors Ltd
Central Services to the Public,Management & Support Services,Environmental,Transport Related Expenditure,Direct Transport Costs,Diesel,08/11/2018,255085,9910.41,Wp Group Limited
Environmental & Regulatory,Regulatory Services,Housing and Environmental Health ,Supplies & Services,Miscellaneous Expenses,Miscellaneous Capital Expenses,08/11/2018,252800,10100.42,Hampshire County Council
Central Services,Corporate & Democratic Core,Corporate & Democratic,Supplies & Services,Miscellaneous Expenses,External Audit Fees,01/11/2018,254574,10170,Ernst & Young Llp
Cultural & Related,Open Spaces,Community and Leisure ,Premises related Expenditure,Grounds Maintenance Costs,Non Contract Tree Works,29/11/2018,256656,10566.98,Gristwood & Toms Ltd
Planning & Development,Development Control,Planning & Building,Supplies & Services,Services,Project Consultancy - Policy,15/11/2018,255441,11089,Hampshire County Council
Planning & Development,Development Control,Planning & Building,Third Party Payments,Commuted Sum,CIL Contribution,08/11/2018,255449,11100.6,Andover Town Council
Housing Services,Housing Benefits ,Revenues,Supplies & Services,Communications & Computing,Software Maintenance,15/11/2018,255692,11317.69,Northgate Public Services Uk Ltd
Planning & Development,Planning Policy,Plan Pol & Transport,Supplies & Services,Services,Professional Fees,15/11/2018,255202,11678,Nexus Planning Ltd
Housing Services,Homelessness,Housing and Environmental Health ,Supplies & Services,Grants & Subscriptions,Grants,29/11/2018,256289,12028,Andover Crisis & Support Centre
Central Services to the Public,Management & Support Services,Estates and Economic Development ,Premises related Expenditure,Repairs Alterations & Maintenance of Buildings,Estates premises costs - AMP,29/11/2018,256981,12500,Clc Contractors Ltd
Central Services to the Public,Management & Support Services,Environmental,Transport Related Expenditure,Direct Transport Costs,Diesel,22/11/2018,256046,13108.69,Wp Group Limited
Central Services to the Public,Management & Support Services,Estates and Economic Development ,Premises related Expenditure,Repairs Alterations & Maintenance of Buildings,Estates premises costs - AMP,08/11/2018,255084,14500,Safespec Building Services Ltd
Central Services,Corporate & Democratic Core,Corporate & Democratic,Supplies & Services,Communications & Computing,Computer Software,15/11/2018,256049,15000,Modern Mindset Ltd
Central Services to the Public,Management & Support Services,Estates and Economic Development ,Supplies & Services,Services,Professional Fees,01/11/2018,253352,17500,Dentons Ukmea Llp
Cultural & Related,Culture & Heritage,Community and Leisure ,Third Party Payments,Private contractors,Main Contractor Costs,15/11/2018,255414,20000,Personal Data - Data Protection Act 1998
Planning & Development,Development Control,Planning & Building,Third Party Payments,Commuted Sum,CIL Contribution,01/11/2018,254879,20343.75,Awbridge Parish Council
Central Services to the Public,Management & Support Services,IT,Supplies & Services,Communications & Computing,Computer Software,15/11/2018,255446,23502.36,Phoenix Software Ltd
Planning & Development,Development Control,Planning & Building,Third Party Payments,Commuted Sum,s106 Developer contributions,08/11/2018,255448,25317.65,Hampshire County Council
Cultural & Related,Open Spaces,Community and Leisure ,Premises related Expenditure,Grounds Maintenance Costs,Gm - Additional Works,29/11/2018,256937,26035.1,The Hampshire & Iow Wildlife Trust
Central Services to the Public,Management & Support Services,Estates and Economic Development ,Premises related Expenditure,Water Services,Water And Sewerage Charges,01/11/2018,254751,42.7,Business Stream
Cultural & Related,Open Spaces,Community and Leisure ,Premises related Expenditure,Repairs Alterations & Maintenance of Buildings,Estates premises costs - AMP,29/11/2018,256656,34987.72,Gristwood & Toms Ltd
Planning & Development,Planning Policy,Plan Pol & Transport,Supplies & Services,Services,Project Consultancy - Policy,15/11/2018,255698,35500,Footprint Ecology
Cultural & Related,Open Spaces,Community and Leisure ,Third Party Payments,Private contractors,Main Contractor Costs,29/11/2018,256937,58232.8,The Hampshire & Iow Wildlife Trust
Planning & Development,Development Control,Planning & Building,Third Party Payments,Commuted Sum,CIL Contribution,01/11/2018,254878,68623.61,Romsey Extra Parish Council
Cultural & Related,Recreation & Sport,Community and Leisure ,Third Party Payments,Private contractors,Main Contractor Costs,08/11/2018,255107,1073871.63,Places For People Leisure Ltd - Developments
